{"text_format":"1","workbook":"xlsx","n_sheets":8,"sheets":["Indice","BALANCE-PYG ","Ordenacion Funcional ","PORCENTAJES","ENDEUDAMIENTO","EQUILIBRIO FINANCIERO","RENTABILIDAD","Notas"],"not_rendered":{"charts":0,"images":7,"macros":1,"external_links":0,"defined_names":0,"comments":0,"pivot_tables":0},"unopened":[],"bounds":{"document_bytes":16777216,"sheet_cells":100000,"rows_first":2000,"rows_last":500,"rows_between":2000,"halvings":0,"cell_chars":16384,"cell_head_chars":4096},"cells_cut":0,"cells_raw":0,"read":"whole","date_system":"1900"}

{"sheet":"Indice","index":0,"n_rows":47,"n_cols":14,"rows_kept":47,"cut":false,"hidden":false,"merged":[[1,10,5,16]]}
[]
[null,null,null,null,null,null,null,null,null,null,"\"… la hoja de cálculo es un instrumento extraordinariamente potente, de fácil uso y versátil pero puede contener graves errores ocultos derivados de fallos cometidos en el diseño del modelo “……. Consejo: Audite continuamente sus diseños…"]
[]
[]
[]
[]
[]
[null,null,null,null,null,null,null,null,null,null,"Consejos de navegacion a tráves de los vínculos del libro"]
[null,null,null,null,null,null,null,null,null,null,"Volver al vínculo anterior",null,"ALT + ←","ALT+FLECHA IZQUIERDA"]
[null,null,null,null,null,null,null,null,null,null,"Volver al vínculo siguiente",null,"ALT + →","ALT+FLECHA DERECHA"]
[null,null,null,null,null,null,null,null,null,null,"R:","Restaura a valores estándar"]
[null,null,null,null,null,null,null,null,null,null,"NC:","Nota contable"]
[null,null,null,null,null,null,null,null,null,null,"NT:","Nota técnica"]
[]
["Indice"]
[null,"NT1","ANALISIS PATRIMONIAL Y DE RESULTADOS DE LA EMPRESA"]
[null,null,"Cuentas Formales de Balance y PyG"]
[null,null,null,"Balance (Patrimonio Empresarial)"]
[null,null,null,"Pérdidas y Ganancias"]
[null,null,"Ordenación Funcional Balance y PyG"]
[null,null,null,"Balance (Patrimonio Empresarial)"]
[null,null,null,"Pérdidas y Ganancias"]
[null,null,"Porcentajes Verticales y Horizontales"]
[null,null,null,"Balance (Patrimonio Empresarial)"]
[null,null,null,"Pérdidas y Ganancias"]
[null,null,"Endeudamiento"]
[null,null,null,"Endeudamiento Total, L/P y C/P"]
[null,null,null,"Endeudamiento Bancario Total, L/P y C/P"]
[null,null,null,"Endeudamiento Comercial C/P"]
[null,"NT2","ANALISIS FINANCIERO O DE SOLVENCIA"]
[null,null,"Equilibrio Financiero"]
[null,null,null,"Equilibrio Financiero a Largo Plazo (Garantía, Financiación del Activo No Corriente)"]
[null,null,null,"Equilibrio Financiero a Corto Plazo (Ratio Corriente, de Solvencia C/P, etc..)"]
[null,null,"Periodo Medio de Maduración"]
[null,null,null,"Periodo Medio de Maduración Económico (Almacenamiento, Cobro a Clientes)"]
[null,null,null,"Periodo Medio de Pagos a Proveedores"]
[null,null,null,"Necesidades de Financiacion en dias y en euros"]
[null,"NT3","ANALISIS ECONOMICO O DE LA RENTABILIDAD"]
[null,null,"Rentabilidad Económica"]
[null,null,null,"Rentabilidad Económica"]
[null,null,null,"Margen Económico"]
[null,null,null,"Rotación Activo Total"]
[null,null,"Rentabilidad Financiera"]
[null,null,null,"Rentabilidad Financiera"]
[null,null,null,"Coste Medio Contable de la Deuda"]
[null,null,null,"Ratio de Endeudamiento"]
[null,null,null,"Apalancamiento Financiero"]

{"sheet":"BALANCE-PYG ","index":1,"n_rows":99,"n_cols":14,"rows_kept":99,"cut":false,"hidden":false,"merged":[[2,0,4,0],[71,0,73,0],[4,12,4,13]]}
["47. COMERCIO AL POR MENOR"]
["Numero de empresas incluidas comunes",910,910,910,910,910]
["BALANCE - PATRIMONO EMPRESARIAL"]
[null,2008,2009,2010,2011,2012]
[null,"mil EUR","mil EUR","mil EUR","mil EUR","mil EUR",null,null,null,null,"Total Activo","Total Pasivo","Descuadre:"]
["ACTIVO",null,null,null,null,null,null,null,null,{"$f":"B4","v":2008},{"$f":"B27","v":911097},{"$f":"B67","v":911097},{"$f":"K6-L6","v":0},{"$f":"IF(M6=0,\"Cuadrado\",\"Revisar\")","v":"Cuadrado"}]
[null,null,null,null,null,null,null,null,null,{"$f":"C4","v":2009},{"$f":"C27","v":909179},{"$f":"C67","v":909179},{"$f":"K7-L7","v":0},{"$f":"IF(M7=0,\"Cuadrado\",\"Revisar\")","v":"Cuadrado"}]
["ACTIVO NO CORRIENTE",{"$f":"B9+B10+B11+B12+B13+B14","v":470028},{"$f":"C9+C10+C11+C12+C13+C14","v":479878},{"$f":"D9+D10+D11+D12+D13+D14","v":487817},{"$f":"E9+E10+E11+E12+E13+E14","v":483301},{"$f":"F9+F10+F11+F12+F13+F14","v":479038},null,null,null,{"$f":"D4","v":2010},{"$f":"D27","v":923485},{"$f":"D67","v":923485},{"$f":"K8-L8","v":0},{"$f":"IF(M8=0,\"Cuadrado\",\"Revisar\")","v":"Cuadrado"}]
["  Inmovilizado intangible",5518,5200,7489,8925,8457,null,null,null,{"$f":"E4","v":2011},{"$f":"E27","v":922652},{"$f":"E67","v":922652},{"$f":"K9-L9","v":0},{"$f":"IF(M9=0,\"Cuadrado\",\"Revisar\")","v":"Cuadrado"}]
["  Inmovilizado material",365732,362855,360682,352302,340112,null,null,null,{"$f":"F4","v":2012},{"$f":"F27","v":913201},{"$f":"F67","v":913201},{"$f":"K10-L10","v":0},{"$f":"IF(M10=0,\"Cuadrado\",\"Revisar\")","v":"Cuadrado"}]
["  Inversiones inmobiliarias",47636,60500,65617,65013,64130]
["  Inversiones en empresas del grupo y asociadas a largo plazo",6390,5364,5848,7329,7093]
["  Inversiones financieras a largo plazo",41352,41426,42671,43585,52098]
["  Activos por impuesto diferido",3400,4533,5510,6147,7148]
[]
["ACTIVO CORRIENTE",{"$f":"B17+B18+B22+B23+B24+B25","v":441069},{"$f":"C17+C18+C22+C23+C24+C25","v":429301},{"$f":"D17+D18+D22+D23+D24+D25","v":435668},{"$f":"E17+E18+E22+E23+E24+E25","v":439351},{"$f":"F17+F18+F22+F23+F24+F25","v":434163}]
["  Existencias",209291,201703,206863,208484,204571]
["  Deudores comerciales y otras cuentas a cobrar",{"$f":"B19+B20+B21","v":105706},{"$f":"C19+C20+C21","v":100504},{"$f":"D19+D20+D21","v":97050},{"$f":"E19+E20+E21","v":93516},{"$f":"F19+F20+F21","v":87132}]
["    Clientes por ventas y prestaciones de servicios",87515,83240,82084,77975,70161]
["    Accionistas (socios) por desembolsos exigidos",0,51,29,0,13]
["    Otros deudores",18191,17213,14937,15541,16958]
["  Inversiones en empresas del grupo y asociadas a corto plazo",3313,2887,3834,3951,7152]
["  Inversiones financieras a corto plazo",48385,50135,54032,56468,58968]
["  Periodificaciones a corto plazo",702,518,730,273,265]
["  Efectivo y otros activos líquidos equivalentes",73672,73554,73159,76659,76075]
[]
["TOTAL ACTIVO ",{"$f":"B16+B8","v":911097},{"$f":"C16+C8","v":909179},{"$f":"D16+D8","v":923485},{"$f":"E16+E8","v":922652},{"$f":"F16+F8","v":913201}]
[]
["PATRIMONIO NETO Y PASIVO",{"$f":"B4","v":2008},2009,2010,2011,2012]
[null,"mil EUR","mil EUR","mil EUR","mil EUR","mil EUR"]
["PATRIMONIO NETO",{"$f":"B32+B43","v":435928},{"$f":"C32+C43","v":455615},{"$f":"D32+D43","v":466557},{"$f":"E32+E43","v":475985},{"$f":"F32+F43","v":492138}]
["  Fondos propios",{"$f":"B33+B36+B37+B38+B39+B40+B41+B42","v":435151},{"$f":"C33+C36+C37+C38+C39+C40+C41+C42","v":454852},{"$f":"D33+D36+D37+D38+D39+D40+D41+D42","v":465774},{"$f":"E33+E36+E37+E38+E39+E40+E41+E42","v":475184},{"$f":"F33+F36+F37+F38+F39+F40+F41+F42","v":491537}]
["  Capital",{"$f":"B34+B35","v":68708},{"$f":"C34+C35","v":71110},{"$f":"D34+D35","v":73465},{"$f":"E34+E35","v":75358},{"$f":"F34+F35","v":78650}]
["    Capital escriturado",68708,71110,73465,75358,78650]
["    (Capital no exigido)",0,0,0,0,0]
["  Prima de emisión",5558,5492,8409,8344,8274]
["  Reservas",334663,359130,380746,392986,412872]
["  (Acciones y participaciones en patrimonio propias)",-1907,-1408,-1408,0,0]
["  Resultados de ejercicios anteriores",8145,4336,-6752,-18873,-28020]
["  Otras aportaciones de socios",443,4537,4565,6307,6652]
["  Resultado del ejercicio",19544,11668,6927,11325,13262]
["  (Dividendo a cuenta)",-3,-13,-178,-263,-153]
["  Subvenciones, donaciones y legados recibidos",777,763,783,801,601]
[]
["PASIVO NO CORRIENTE",{"$f":"B46+B47+B51+B52+B53","v":204789},{"$f":"C46+C47+C51+C52+C53","v":211333},{"$f":"D46+D47+D51+D52+D53","v":210213},{"$f":"E46+E47+E51+E52+E53","v":200920},{"$f":"F46+F47+F51+F52+F53","v":187970}]
["  Provisiones a largo plazo",298,303,491,308,293]
["  Deudas a largo plazo",{"$f":"B48+B49+B50","v":199740},{"$f":"C48+C49+C50","v":205811},{"$f":"D48+D49+D50","v":207110},{"$f":"E48+E49+E50","v":198320},{"$f":"F48+F49+F50","v":184879}]
["    Deudas con entidades de crédito",171124,184070,182666,171383,159009]
["    Acreedores por arrendamiento financiero",3830,3462,4423,4175,3561]
["    Otras deudas a largo plazo",24786,18279,20021,22762,22309]
["  Deudas con empresas del grupo y asociadas a largo plazo",4346,4798,1946,1750,2354]
["  Pasivos por impuesto diferido",343,338,299,296,278]
["  Periodificaciones a largo plazo",62,83,367,246,166]
[]
["PASIVO CORRIENTE",{"$f":"B56+B57+B61+B62+B65","v":270380},{"$f":"C56+C57+C61+C62+C65","v":242231},{"$f":"D56+D57+D61+D62+D65","v":246715},{"$f":"E56+E57+E61+E62+E65","v":245747},{"$f":"F56+F57+F61+F62+F65","v":233093}]
["  Provisiones a corto plazo",305,171,192,396,136]
["  Deudas a corto plazo",{"$f":"B58+B59+B60","v":89900},{"$f":"C58+C59+C60","v":80500},{"$f":"D58+D59+D60","v":79593},{"$f":"E58+E59+E60","v":77294},{"$f":"F58+F59+F60","v":76193}]
["    Deudas con entidades de crédito",40541,37240,34740,29932,27451]
["    Acreedores por arrendamiento financiero",436,403,659,577,577]
["    Otras deudas a corto plazo",48923,42857,44194,46785,48165]
["  Deudas con empresas del grupo y asociadas a corto plazo",3521,3300,6944,5840,4959]
["  Acreedores comerciales y otras cuentas a pagar",{"$f":"B63+B64","v":176222},{"$f":"C63+C64","v":158043},{"$f":"D63+D64","v":159895},{"$f":"E63+E64","v":162027},{"$f":"F63+F64","v":151680}]
["    Proveedores",127958,114561,118031,117366,107252]
["    Otros acreedores",48264,43482,41864,44661,44428]
["  Periodificaciones a corto plazo",432,217,91,190,125]
[]
["TOTAL PATRIMONIO NETO Y PASIVO ",{"$f":"B31+B45+B55","v":911097},{"$f":"C31+C45+C55","v":909179},{"$f":"D31+D45+D55","v":923485},{"$f":"E31+E45+E55","v":922652},{"$f":"F31+F45+F55","v":913201}]
[]
[]
[]
[]
["CUENTA DE PÉRDIDAS Y GANANCIAS"]
[]
[null,{"$f":"B29","v":2008},2009,2010,2011,2012]
[null,"mil EUR","mil EUR","mil EUR","mil EUR","mil EUR"]
["  Importe neto de la cifra de negocios",929513,806211,816395,836739,811809]
["  Variación de existencias de productos terminados y en curso de fabricación",-1473,256,801,1048,-376]
["  Trabajos realizados por la empresa para su activo",550,667,626,540,246]
["  Aprovisionamientos",-660161,-554314,-568875,-587222,-569590]
["  Otros ingresos de explotación",18604,14330,14894,15890,15932]
["  Gastos de personal",-130928,-126706,-126408,-128676,-126416]
["  Otros gastos de explotación",-103035,-94677,-95280,-95210,-92868]
["  Amortización del inmovilizado",-21971,-22177,-22844,-22372,-20280]
["  Imputación de subvenciones de inmovilizado no financiero y otras",234,187,137,140,99]
["  Excesos de provisiones",20,175,5,0,84]
["  Deterioro y resultado por enajenaciones del inmovilizado",2807,5585,1240,2816,4152]
["RESULTADO DE EXPLOTACIÓN ",{"$f":"SUM(B76:B86)","v":34160},{"$f":"SUM(C76:C86)","v":29537},{"$f":"SUM(D76:D86)","v":20691},{"$f":"SUM(E76:E86)","v":23693},{"$f":"SUM(F76:F86)","v":22792}]
["  Ingresos financieros",4762,3830,2341,2535,2708]
["  Gastos financieros",-15708,-14076,-10704,-10216,-10386]
["  Variación de valor razonable en instrumentos financieros",-675,-617,-575,-751,-413]
["  Diferencias de cambio",15,-2076,-2077,-902,1284]
["  Deterioro y resultado por enajenaciones de instrumentos financieros",51,-2115,-237,-483,-183]
["RESULTADO FINANCIERO ",{"$f":"SUM(B88:B92)","v":-11555},{"$f":"SUM(C88:C92)","v":-15054},{"$f":"SUM(D88:D92)","v":-11252},{"$f":"SUM(E88:E92)","v":-9817},{"$f":"SUM(F88:F92)","v":-6990}]
[]
["RESULTADO ANTES DE IMPUESTOS ",{"$f":"B87+B93","v":22605},{"$f":"C87+C93","v":14483},{"$f":"D87+D93","v":9439},{"$f":"E87+E93","v":13876},{"$f":"F87+F93","v":15802}]
[]
["  Impuestos sobre beneficios",-3061,-2815,-2512,-2551,-2540]
[]
["RESULTADO DEL EJERCICIO ",{"$f":"B95+B97","v":19544},{"$f":"C95+C97","v":11668},{"$f":"D95+D97","v":6927},{"$f":"E95+E97","v":11325},{"$f":"F95+F97","v":13262}]

{"sheet":"Ordenacion Funcional ","index":2,"n_rows":118,"n_cols":12,"rows_kept":118,"cut":false,"hidden":false,"merged":[[4,10,4,11],[3,7,3,11],[1,1,1,5],[117,1,118,5],[117,0,118,0],[0,0,2,0],[3,0,5,0],[77,0,79,0],[80,0,81,0],[78,1,78,5],[40,7,40,8]]}
["ORDENACION FUNCIONAL DEL PATRIMONIO Y RESULTADOS"]
[null,"47. COMERCIO AL POR MENOR"]
[null,{"$f":"'BALANCE-PYG '!B2","v":910},{"$f":"'BALANCE-PYG '!C2","v":910},{"$f":"'BALANCE-PYG '!D2","v":910},{"$f":"'BALANCE-PYG '!E2","v":910},{"$f":"'BALANCE-PYG '!F2","v":910}]
["BALANCE - PATRIMONO EMPRESARIAL",null,null,null,null,null,null,"Comprobación"]
[null,2008,2009,2010,2011,2012,null,null,"Total Activo","Total Pasivo","Descuadre:"]
[null,"mil EUR","mil EUR","mil EUR","mil EUR","mil EUR",null,{"$f":"B5","v":2008},{"$f":"B32","v":911097},{"$f":"B73","v":911097},{"$f":"I6-J6","v":0},{"$f":"IF(K6=0,\"Cuadrado\",\"Revisar\")","v":"Cuadrado"}]
["ACTIVO",null,null,null,null,null,null,{"$f":"C5","v":2009},{"$f":"C32","v":909179},{"$f":"C73","v":909179},{"$f":"I7-J7","v":0},{"$f":"IF(K7=0,\"Cuadrado\",\"Revisar\")","v":"Cuadrado"}]
[null,null,null,null,null,null,null,{"$f":"D5","v":2010},{"$f":"D32","v":923485},{"$f":"D73","v":923485},{"$f":"I8-J8","v":0},{"$f":"IF(K8=0,\"Cuadrado\",\"Revisar\")","v":"Cuadrado"}]
["ACTIVO EXPLOTACIÓN",{"$f":"B10+B14","v":764021},{"$f":"C10+C14","v":748816},751454,746306,723747,null,{"$f":"E5","v":2011},{"$f":"E32","v":922652},{"$f":"E73","v":922652},{"$f":"I9-J9","v":0},{"$f":"IF(K9=0,\"Cuadrado\",\"Revisar\")","v":"Cuadrado"}]
["ACTIVO NO CORRIENTE EXPLOTACIÓN",{"$f":"B11+B12+B13","v":374650},{"$f":"C11+C12+C13","v":372588},{"$f":"D11+D12+D13","v":373681},{"$f":"E11+E12+E13","v":367374},{"$f":"F11+F12+F13","v":355717},null,{"$f":"F5","v":2012},{"$f":"F32","v":913201},{"$f":"F73","v":913201},{"$f":"I10-J10","v":0},{"$f":"IF(K10=0,\"Cuadrado\",\"Revisar\")","v":"Cuadrado"}]
["  Inmovilizado intangible",{"$f":"'BALANCE-PYG '!B9","v":5518},{"$f":"'BALANCE-PYG '!C9","v":5200},{"$f":"'BALANCE-PYG '!D9","v":7489},{"$f":"'BALANCE-PYG '!E9","v":8925},{"$f":"'BALANCE-PYG '!F9","v":8457}]
["  Inmovilizado material",{"$f":"'BALANCE-PYG '!B10","v":365732},{"$f":"'BALANCE-PYG '!C10","v":362855},{"$f":"'BALANCE-PYG '!D10","v":360682},{"$f":"'BALANCE-PYG '!E10","v":352302},{"$f":"'BALANCE-PYG '!F10","v":340112}]
["  Activos por impuesto diferido",{"$f":"'BALANCE-PYG '!B14","v":3400},{"$f":"'BALANCE-PYG '!C14","v":4533},{"$f":"'BALANCE-PYG '!D14","v":5510},{"$f":"'BALANCE-PYG '!E14","v":6147},{"$f":"'BALANCE-PYG '!F14","v":7148}]
["ACTIVO CORRIENTE EXPLOTACIÓN",{"$f":"B15+B19","v":389371},{"$f":"C15+C19","v":376228},377773,378932,368030]
["  ACTIVOS COMERCIALES",{"$f":"SUM(B16:B18)","v":315699},{"$f":"SUM(C16:C18)","v":302674},{"$f":"SUM(D16:D18)","v":304614},{"$f":"SUM(E16:E18)","v":302273},{"$f":"SUM(F16:F18)","v":291955}]
["  Existencias",{"$f":"'BALANCE-PYG '!B17","v":209291},{"$f":"'BALANCE-PYG '!C17","v":201703},{"$f":"'BALANCE-PYG '!D17","v":206863},{"$f":"'BALANCE-PYG '!E17","v":208484},{"$f":"'BALANCE-PYG '!F17","v":204571}]
["  Clientes por ventas y prestaciones de servicios",{"$f":"'BALANCE-PYG '!B19","v":87515},{"$f":"'BALANCE-PYG '!C19","v":83240},{"$f":"'BALANCE-PYG '!D19","v":82084},{"$f":"'BALANCE-PYG '!E19","v":77975},{"$f":"'BALANCE-PYG '!F19","v":70161}]
["  Otros deudores (incluye periodificaciones c/p)",{"$f":"'BALANCE-PYG '!B21+'BALANCE-PYG '!B24","v":18893},{"$f":"'BALANCE-PYG '!C21+'BALANCE-PYG '!C24","v":17731},{"$f":"'BALANCE-PYG '!D21+'BALANCE-PYG '!D24","v":15667},{"$f":"'BALANCE-PYG '!E21+'BALANCE-PYG '!E24","v":15814},{"$f":"'BALANCE-PYG '!F21+'BALANCE-PYG '!F24","v":17223}]
["  TESORERÍA",{"$f":"B20","v":73672},{"$f":"C20","v":73554},{"$f":"D20","v":73159},{"$f":"E20","v":76659},{"$f":"F20","v":76075}]
["  Efectivo y otros activos líquidos equivalentes",{"$f":"'BALANCE-PYG '!B25","v":73672},{"$f":"'BALANCE-PYG '!C25","v":73554},{"$f":"'BALANCE-PYG '!D25","v":73159},{"$f":"'BALANCE-PYG '!E25","v":76659},{"$f":"'BALANCE-PYG '!F25","v":76075}]
[]
["ACTIVO AJENO A LA EXPLOTACIÓN",{"$f":"B23+B27","v":147076},{"$f":"C23+C27","v":160363},172031,176346,189454]
["ACTIVO NO CORRIENTE AJENO EXPLOTACIÓN",{"$f":"SUM(B24:B26)","v":95378},{"$f":"SUM(C24:C26)","v":107290},{"$f":"SUM(D24:D26)","v":114136},{"$f":"SUM(E24:E26)","v":115927},{"$f":"SUM(F24:F26)","v":123321}]
["  Inversiones inmobiliarias",{"$f":"'BALANCE-PYG '!B11","v":47636},{"$f":"'BALANCE-PYG '!C11","v":60500},{"$f":"'BALANCE-PYG '!D11","v":65617},{"$f":"'BALANCE-PYG '!E11","v":65013},{"$f":"'BALANCE-PYG '!F11","v":64130}]
["  Inversiones en empresas del grupo y asociadas a largo plazo",{"$f":"'BALANCE-PYG '!B12","v":6390},{"$f":"'BALANCE-PYG '!C12","v":5364},{"$f":"'BALANCE-PYG '!D12","v":5848},{"$f":"'BALANCE-PYG '!E12","v":7329},{"$f":"'BALANCE-PYG '!F12","v":7093}]
["  Inversiones financieras a largo plazo",{"$f":"'BALANCE-PYG '!B13","v":41352},{"$f":"'BALANCE-PYG '!C13","v":41426},{"$f":"'BALANCE-PYG '!D13","v":42671},{"$f":"'BALANCE-PYG '!E13","v":43585},{"$f":"'BALANCE-PYG '!F13","v":52098}]
["ACTIVO CORRIENTE AJENO EXPLOTACIÓN",{"$f":"SUM(B28:B30)","v":51698},{"$f":"SUM(C28:C30)","v":53073},{"$f":"SUM(D28:D30)","v":57895},{"$f":"SUM(E28:E30)","v":60419},{"$f":"SUM(F28:F30)","v":66133}]
["  Inversiones en empresas del grupo y asociadas a corto plazo",{"$f":"'BALANCE-PYG '!B22","v":3313},{"$f":"'BALANCE-PYG '!C22","v":2887},{"$f":"'BALANCE-PYG '!D22","v":3834},{"$f":"'BALANCE-PYG '!E22","v":3951},{"$f":"'BALANCE-PYG '!F22","v":7152}]
["  Inversiones financieras a corto plazo",{"$f":"'BALANCE-PYG '!B23","v":48385},{"$f":"'BALANCE-PYG '!C23","v":50135},{"$f":"'BALANCE-PYG '!D23","v":54032},{"$f":"'BALANCE-PYG '!E23","v":56468},{"$f":"'BALANCE-PYG '!F23","v":58968}]
["  Accionistas (socios) por desembolsos exigidos",{"$f":"'BALANCE-PYG '!B20","v":0},{"$f":"'BALANCE-PYG '!C20","v":51},{"$f":"'BALANCE-PYG '!D20","v":29},{"$f":"'BALANCE-PYG '!E20","v":0},{"$f":"'BALANCE-PYG '!F20","v":13}]
[]
["TOTAL ACTIVO ",{"$f":"B22+B9","v":911097},{"$f":"C22+C9","v":909179},{"$f":"D22+D9","v":923485},{"$f":"E22+E9","v":922652},{"$f":"F22+F9","v":913201}]
[]
["  Inversiones financieras  total o puras",{"$f":"B29+B26","v":89737},{"$f":"C29+C26","v":91561},{"$f":"D29+D26","v":96703},{"$f":"E29+E26","v":100053},{"$f":"F29+F26","v":111066}]
["  Inversiones en empresas del grupo y asociadas total",{"$f":"B28+B25","v":9703},{"$f":"C28+C25","v":8251},{"$f":"D28+D25","v":9682},{"$f":"E28+E25","v":11280},{"$f":"F28+F25","v":14245}]
[null,{"$f":"B5","v":2008},{"$f":"C5","v":2009},{"$f":"D5","v":2010},{"$f":"E5","v":2011},{"$f":"F5","v":2012}]
["PATRIMONIO NETO",{"$f":"B38+B49","v":435928},{"$f":"C38+C49","v":455615},{"$f":"D38+D49","v":466557},{"$f":"E38+E49","v":475985},{"$f":"F38+F49","v":492138}]
["  Fondos propios",{"$f":"B39+B42+B43+B44+B45+B46+B47+B48","v":435151},{"$f":"C39+C42+C43+C44+C45+C46+C47+C48","v":454852},{"$f":"D39+D42+D43+D44+D45+D46+D47+D48","v":465774},{"$f":"E39+E42+E43+E44+E45+E46+E47+E48","v":475184},{"$f":"F39+F42+F43+F44+F45+F46+F47+F48","v":491537}]
["  Capital",{"$f":"B40+B41","v":68708},{"$f":"C40+C41","v":71110},{"$f":"D40+D41","v":73465},{"$f":"E40+E41","v":75358},{"$f":"F40+F41","v":78650}]
["    Capital escriturado",{"$f":"'BALANCE-PYG '!B34","v":68708},{"$f":"'BALANCE-PYG '!C34","v":71110},{"$f":"'BALANCE-PYG '!D34","v":73465},{"$f":"'BALANCE-PYG '!E34","v":75358},{"$f":"'BALANCE-PYG '!F34","v":78650}]
["    (Capital no exigido)",{"$f":"'BALANCE-PYG '!B35","v":0},{"$f":"'BALANCE-PYG '!C35","v":0},{"$f":"'BALANCE-PYG '!D35","v":0},{"$f":"'BALANCE-PYG '!E35","v":0},{"$f":"'BALANCE-PYG '!F35","v":0}]
["  Prima de emisión",{"$f":"'BALANCE-PYG '!B36","v":5558},{"$f":"'BALANCE-PYG '!C36","v":5492},{"$f":"'BALANCE-PYG '!D36","v":8409},{"$f":"'BALANCE-PYG '!E36","v":8344},{"$f":"'BALANCE-PYG '!F36","v":8274}]
["  Reservas",{"$f":"'BALANCE-PYG '!B37","v":334663},{"$f":"'BALANCE-PYG '!C37","v":359130},{"$f":"'BALANCE-PYG '!D37","v":380746},{"$f":"'BALANCE-PYG '!E37","v":392986},{"$f":"'BALANCE-PYG '!F37","v":412872}]
["  (Acciones y participaciones en patrimonio propias)",{"$f":"'BALANCE-PYG '!B38","v":-1907},{"$f":"'BALANCE-PYG '!C38","v":-1408},{"$f":"'BALANCE-PYG '!D38","v":-1408},{"$f":"'BALANCE-PYG '!E38","v":0},{"$f":"'BALANCE-PYG '!F38","v":0}]
["  Resultados de ejercicios anteriores",{"$f":"'BALANCE-PYG '!B39","v":8145},{"$f":"'BALANCE-PYG '!C39","v":4336},{"$f":"'BALANCE-PYG '!D39","v":-6752},{"$f":"'BALANCE-PYG '!E39","v":-18873},{"$f":"'BALANCE-PYG '!F39","v":-28020}]
["  Otras aportaciones de socios",{"$f":"'BALANCE-PYG '!B40","v":443},{"$f":"'BALANCE-PYG '!C40","v":4537},{"$f":"'BALANCE-PYG '!D40","v":4565},{"$f":"'BALANCE-PYG '!E40","v":6307},{"$f":"'BALANCE-PYG '!F40","v":6652}]
["  Resultado del ejercicio",{"$f":"'BALANCE-PYG '!B41","v":19544},{"$f":"'BALANCE-PYG '!C41","v":11668},{"$f":"'BALANCE-PYG '!D41","v":6927},{"$f":"'BALANCE-PYG '!E41","v":11325},{"$f":"'BALANCE-PYG '!F41","v":13262}]
["  (Dividendo a cuenta)",{"$f":"'BALANCE-PYG '!B42","v":-3},{"$f":"'BALANCE-PYG '!C42","v":-13},{"$f":"'BALANCE-PYG '!D42","v":-178},{"$f":"'BALANCE-PYG '!E42","v":-263},{"$f":"'BALANCE-PYG '!F42","v":-153}]
["  Subvenciones, donaciones y legados recibidos",{"$f":"'BALANCE-PYG '!B43","v":777},{"$f":"'BALANCE-PYG '!C43","v":763},{"$f":"'BALANCE-PYG '!D43","v":783},{"$f":"'BALANCE-PYG '!E43","v":801},{"$f":"'BALANCE-PYG '!F43","v":601}]
[]
["PASIVO TOTAL",{"$f":"B52+B62","v":475169},{"$f":"C52+C62","v":453564},{"$f":"D52+D62","v":456928},{"$f":"E52+E62","v":446667},{"$f":"F52+F62","v":421063}]
["PASIVO NO CORRIENTE",{"$f":"B53+B57","v":204789},{"$f":"C53+C57","v":211333},{"$f":"D53+D57","v":210213},{"$f":"E53+E57","v":200920},{"$f":"F53+F57","v":187970}]
["CRÉDITOS PUROS A LARGO PLAZO",{"$f":"SUM(B54:B56)","v":204086},{"$f":"SUM(C54:C56)","v":210609},{"$f":"SUM(D54:D56)","v":209056},{"$f":"SUM(E54:E56)","v":200070},{"$f":"SUM(F54:F56)","v":187233}]
["  Deudas con entidades de crédito",{"$f":"'BALANCE-PYG '!B48","v":171124},{"$f":"'BALANCE-PYG '!C48","v":184070},{"$f":"'BALANCE-PYG '!D48","v":182666},{"$f":"'BALANCE-PYG '!E48","v":171383},{"$f":"'BALANCE-PYG '!F48","v":159009}]
["  Deudas con empresas del grupo y asociadas a largo plazo",{"$f":"'BALANCE-PYG '!B51","v":4346},{"$f":"'BALANCE-PYG '!C51","v":4798},{"$f":"'BALANCE-PYG '!D51","v":1946},{"$f":"'BALANCE-PYG '!E51","v":1750},{"$f":"'BALANCE-PYG '!F51","v":2354}]
["  Otras deudas a largo plazo",{"$f":"'BALANCE-PYG '!B49+'BALANCE-PYG '!B50","v":28616},{"$f":"'BALANCE-PYG '!C49+'BALANCE-PYG '!C50","v":21741},{"$f":"'BALANCE-PYG '!D49+'BALANCE-PYG '!D50","v":24444},{"$f":"'BALANCE-PYG '!E49+'BALANCE-PYG '!E50","v":26937},{"$f":"'BALANCE-PYG '!F49+'BALANCE-PYG '!F50","v":25870}]
["OTROS PASIVOS NO CORRIENTES",{"$f":"SUM(B58:B60)","v":703},{"$f":"SUM(C58:C60)","v":724},{"$f":"SUM(D58:D60)","v":1157},{"$f":"SUM(E58:E60)","v":850},{"$f":"SUM(F58:F60)","v":737}]
["  Provisiones a largo plazo",{"$f":"'BALANCE-PYG '!B46","v":298},{"$f":"'BALANCE-PYG '!C46","v":303},{"$f":"'BALANCE-PYG '!D46","v":491},{"$f":"'BALANCE-PYG '!E46","v":308},{"$f":"'BALANCE-PYG '!F46","v":293}]
["  Pasivos por impuesto diferido",{"$f":"'BALANCE-PYG '!B52","v":343},{"$f":"'BALANCE-PYG '!C52","v":338},{"$f":"'BALANCE-PYG '!D52","v":299},{"$f":"'BALANCE-PYG '!E52","v":296},{"$f":"'BALANCE-PYG '!F52","v":278}]
["  Periodificaciones a largo plazo",{"$f":"'BALANCE-PYG '!B53","v":62},{"$f":"'BALANCE-PYG '!C53","v":83},{"$f":"'BALANCE-PYG '!D53","v":367},{"$f":"'BALANCE-PYG '!E53","v":246},{"$f":"'BALANCE-PYG '!F53","v":166}]
[]
["PASIVO CORRIENTE",{"$f":"B63+B66+B70","v":270380},{"$f":"C63+C66+C70","v":242231},{"$f":"D63+D66+D70","v":246715},{"$f":"E63+E66+E70","v":245747},{"$f":"F63+F66+F70","v":233093}]
["PASIVOS COMERCIALES",{"$f":"B64+B65","v":176654},{"$f":"C64+C65","v":158260},{"$f":"D64+D65","v":159986},{"$f":"E64+E65","v":162217},{"$f":"F64+F65","v":151805}]
["    Proveedores",{"$f":"'BALANCE-PYG '!B63","v":127958},{"$f":"'BALANCE-PYG '!C63","v":114561},{"$f":"'BALANCE-PYG '!D63","v":118031},{"$f":"'BALANCE-PYG '!E63","v":117366},{"$f":"'BALANCE-PYG '!F63","v":107252}]
["    Otros acreedores",{"$f":"'BALANCE-PYG '!B64+'BALANCE-PYG '!B65","v":48696},{"$f":"'BALANCE-PYG '!C64+'BALANCE-PYG '!C65","v":43699},{"$f":"'BALANCE-PYG '!D64+'BALANCE-PYG '!D65","v":41955},{"$f":"'BALANCE-PYG '!E64+'BALANCE-PYG '!E65","v":44851},{"$f":"'BALANCE-PYG '!F64+'BALANCE-PYG '!F65","v":44553}]
["CRÉDITOS PUROS A CORTO PLAZO",{"$f":"B67+B68+B69","v":93421},{"$f":"C67+C68+C69","v":83800},{"$f":"D67+D68+D69","v":86537},{"$f":"E67+E68+E69","v":83134},{"$f":"F67+F68+F69","v":81152}]
["  Deudas con entidades de crédito",{"$f":"'BALANCE-PYG '!B58","v":40541},{"$f":"'BALANCE-PYG '!C58","v":37240},{"$f":"'BALANCE-PYG '!D58","v":34740},{"$f":"'BALANCE-PYG '!E58","v":29932},{"$f":"'BALANCE-PYG '!F58","v":27451}]
["  Deudas con empresas del grupo y asociadas a corto plazo",{"$f":"'BALANCE-PYG '!B61","v":3521},{"$f":"'BALANCE-PYG '!C61","v":3300},{"$f":"'BALANCE-PYG '!D61","v":6944},{"$f":"'BALANCE-PYG '!E61","v":5840},{"$f":"'BALANCE-PYG '!F61","v":4959}]
["  Otras deudas a corto plazo",{"$f":"'BALANCE-PYG '!B59+'BALANCE-PYG '!B60","v":49359},{"$f":"'BALANCE-PYG '!C59+'BALANCE-PYG '!C60","v":43260},{"$f":"'BALANCE-PYG '!D59+'BALANCE-PYG '!D60","v":44853},{"$f":"'BALANCE-PYG '!E59+'BALANCE-PYG '!E60","v":47362},{"$f":"'BALANCE-PYG '!F59+'BALANCE-PYG '!F60","v":48742}]
["OTROS PASIVOS CORRIENTES",{"$f":"B71","v":305},{"$f":"C71","v":171},{"$f":"D71","v":192},{"$f":"E71","v":396},{"$f":"F71","v":136}]
["  Provisiones a corto plazo",{"$f":"'BALANCE-PYG '!B56","v":305},{"$f":"'BALANCE-PYG '!C56","v":171},{"$f":"'BALANCE-PYG '!D56","v":192},{"$f":"'BALANCE-PYG '!E56","v":396},{"$f":"'BALANCE-PYG '!F56","v":136}]
[]
["TOTAL PATRIMONIO NETO Y PASIVO ",{"$f":"B37+B51","v":911097},{"$f":"C37+C51","v":909179},{"$f":"D37+D51","v":923485},{"$f":"E37+E51","v":922652},{"$f":"F37+F51","v":913201}]
[]
["  Deudas con entidades de crédito total",{"$f":"'BALANCE-PYG '!B58+'BALANCE-PYG '!B48","v":211665},{"$f":"'BALANCE-PYG '!C58+'BALANCE-PYG '!C48","v":221310},{"$f":"'BALANCE-PYG '!D58+'BALANCE-PYG '!D48","v":217406},{"$f":"'BALANCE-PYG '!E58+'BALANCE-PYG '!E48","v":201315},{"$f":"'BALANCE-PYG '!F58+'BALANCE-PYG '!F48","v":186460}]
["  Deudas con empresas del grupo y asociadas total",{"$f":"'BALANCE-PYG '!B51+'BALANCE-PYG '!B61","v":7867},{"$f":"'BALANCE-PYG '!C51+'BALANCE-PYG '!C61","v":8098},{"$f":"'BALANCE-PYG '!D51+'BALANCE-PYG '!D61","v":8890},{"$f":"'BALANCE-PYG '!E51+'BALANCE-PYG '!E61","v":7590},{"$f":"'BALANCE-PYG '!F51+'BALANCE-PYG '!F61","v":7313}]
[]
["ORDENACION FUNCIONAL DEL PATRIMONIO Y RESULTADOS"]
[null,"47. COMERCIO AL POR MENOR"]
[null,2008,2009,2010,2011,2012]
["CUENTA DE PÉRDIDAS Y GANANCIAS","mil EUR","mil EUR","mil EUR","mil EUR","mil EUR"]
[]
["  Importe neto de la cifra de negocios",{"$f":"'BALANCE-PYG '!B76","v":929513},{"$f":"'BALANCE-PYG '!C76","v":806211},{"$f":"'BALANCE-PYG '!D76","v":816395},{"$f":"'BALANCE-PYG '!E76","v":836739},{"$f":"'BALANCE-PYG '!F76","v":811809}]
["  Consumo de existencias",{"$f":"B85+B86","v":-661634},{"$f":"C85+C86","v":-554058},{"$f":"D85+D86","v":-568074},{"$f":"E85+E86","v":-586174},{"$f":"F85+F86","v":-569966}]
["  Aprovisionamientos",{"$f":"'BALANCE-PYG '!B79","v":-660161},{"$f":"'BALANCE-PYG '!C79","v":-554314},{"$f":"'BALANCE-PYG '!D79","v":-568875},{"$f":"'BALANCE-PYG '!E79","v":-587222},{"$f":"'BALANCE-PYG '!F79","v":-569590}]
["  Variación de existencias de productos terminados y en curso de fabricación",{"$f":"'BALANCE-PYG '!B77","v":-1473},{"$f":"'BALANCE-PYG '!C77","v":256},{"$f":"'BALANCE-PYG '!D77","v":801},{"$f":"'BALANCE-PYG '!E77","v":1048},{"$f":"'BALANCE-PYG '!F77","v":-376}]
[]
["RESULTADO BRUTO DE EXPLOTACIÓN",{"$f":"B83+B84","v":267879},{"$f":"C83+C84","v":252153},{"$f":"D83+D84","v":248321},{"$f":"E83+E84","v":250565},{"$f":"F83+F84","v":241843}]
[]
["  Gastos de personal",{"$f":"'BALANCE-PYG '!B81","v":-130928},{"$f":"'BALANCE-PYG '!C81","v":-126706},{"$f":"'BALANCE-PYG '!D81","v":-126408},{"$f":"'BALANCE-PYG '!E81","v":-128676},{"$f":"'BALANCE-PYG '!F81","v":-126416}]
["  Otros gastos de explotación",{"$f":"'BALANCE-PYG '!B82","v":-103035},{"$f":"'BALANCE-PYG '!C82","v":-94677},{"$f":"'BALANCE-PYG '!D82","v":-95280},{"$f":"'BALANCE-PYG '!E82","v":-95210},{"$f":"'BALANCE-PYG '!F82","v":-92868}]
["  Amortización del inmovilizado (b)",{"$f":"'BALANCE-PYG '!B83","v":-21971},{"$f":"'BALANCE-PYG '!C83","v":-22177},{"$f":"'BALANCE-PYG '!D83","v":-22844},{"$f":"'BALANCE-PYG '!E83","v":-22372},{"$f":"'BALANCE-PYG '!F83","v":-20280}]
[]
["RESULTADO NETO DE EXPLOTACIÓN",{"$f":"B88+B90+B91+B92","v":11945},{"$f":"C88+C90+C91+C92","v":8593},{"$f":"D88+D90+D91+D92","v":3789},{"$f":"E88+E90+E91+E92","v":4307},{"$f":"F88+F90+F91+F92","v":2279}]
[]
["  Otros ingresos de explotación",{"$f":"'BALANCE-PYG '!B80","v":18604},{"$f":"'BALANCE-PYG '!C80","v":14330},{"$f":"'BALANCE-PYG '!D80","v":14894},{"$f":"'BALANCE-PYG '!E80","v":15890},{"$f":"'BALANCE-PYG '!F80","v":15932}]
["  Trabajos realizados por la empresa para su activo",{"$f":"'BALANCE-PYG '!B78","v":550},{"$f":"'BALANCE-PYG '!C78","v":667},{"$f":"'BALANCE-PYG '!D78","v":626},{"$f":"'BALANCE-PYG '!E78","v":540},{"$f":"'BALANCE-PYG '!F78","v":246}]
["  Imputación de subvenciones de inmovilizado no financiero y otras (c)",{"$f":"'BALANCE-PYG '!B84","v":234},{"$f":"'BALANCE-PYG '!C84","v":187},{"$f":"'BALANCE-PYG '!D84","v":137},{"$f":"'BALANCE-PYG '!E84","v":140},{"$f":"'BALANCE-PYG '!F84","v":99}]
["  Excesos de provisiones (d)",{"$f":"'BALANCE-PYG '!B85","v":20},{"$f":"'BALANCE-PYG '!C85","v":175},{"$f":"'BALANCE-PYG '!D85","v":5},{"$f":"'BALANCE-PYG '!E85","v":0},{"$f":"'BALANCE-PYG '!F85","v":84}]
["  Deterioro y resultado por enajenaciones del inmovilizado (e)",{"$f":"'BALANCE-PYG '!B86","v":2807},{"$f":"'BALANCE-PYG '!C86","v":5585},{"$f":"'BALANCE-PYG '!D86","v":1240},{"$f":"'BALANCE-PYG '!E86","v":2816},{"$f":"'BALANCE-PYG '!F86","v":4152}]
[]
["RESULTADO ANTES DE INTERESES E IMPUESTOS",{"$f":"B94+B96+B97+B98+B99+B100","v":34160},{"$f":"C94+C96+C97+C98+C99+C100","v":29537},{"$f":"D94+D96+D97+D98+D99+D100","v":20691},{"$f":"E94+E96+E97+E98+E99+E100","v":23693},{"$f":"F94+F96+F97+F98+F99+F100","v":22792}]
[]
["  Ingresos financieros",{"$f":"'BALANCE-PYG '!B88","v":4762},{"$f":"'BALANCE-PYG '!C88","v":3830},{"$f":"'BALANCE-PYG '!D88","v":2341},{"$f":"'BALANCE-PYG '!E88","v":2535},{"$f":"'BALANCE-PYG '!F88","v":2708}]
["  Gastos financieros",{"$f":"'BALANCE-PYG '!B89","v":-15708},{"$f":"'BALANCE-PYG '!C89","v":-14076},{"$f":"'BALANCE-PYG '!D89","v":-10704},{"$f":"'BALANCE-PYG '!E89","v":-10216},{"$f":"'BALANCE-PYG '!F89","v":-10386}]
["  Resto de ingresos y gastos financieros",{"$f":"SUM(B107:B109)","v":-609},{"$f":"SUM(C107:C109)","v":-4808},{"$f":"SUM(D107:D109)","v":-2889},{"$f":"SUM(E107:E109)","v":-2136},{"$f":"SUM(F107:F109)","v":688}]
["  Variación de valor razonable en instrumentos financieros (f)",{"$f":"'BALANCE-PYG '!B90","v":-675},{"$f":"'BALANCE-PYG '!C90","v":-617},{"$f":"'BALANCE-PYG '!D90","v":-575},{"$f":"'BALANCE-PYG '!E90","v":-751},{"$f":"'BALANCE-PYG '!F90","v":-413}]
["  Diferencias de cambio (g)",{"$f":"'BALANCE-PYG '!B91","v":15},{"$f":"'BALANCE-PYG '!C91","v":-2076},{"$f":"'BALANCE-PYG '!D91","v":-2077},{"$f":"'BALANCE-PYG '!E91","v":-902},{"$f":"'BALANCE-PYG '!F91","v":1284}]
["  Deterioro y resultado por enajenaciones de instrumentos financieros (h)",{"$f":"'BALANCE-PYG '!B92","v":51},{"$f":"'BALANCE-PYG '!C92","v":-2115},{"$f":"'BALANCE-PYG '!D92","v":-237},{"$f":"'BALANCE-PYG '!E92","v":-483},{"$f":"'BALANCE-PYG '!F92","v":-183}]
[]
["RESULTADO ANTES DE IMPUESTOS ",{"$f":"B104+B102+B105+B106","v":22605},{"$f":"C104+C102+C105+C106","v":14483},{"$f":"D104+D102+D105+D106","v":9439},{"$f":"E104+E102+E105+E106","v":13876},{"$f":"F104+F102+F105+F106","v":15802}]
[]
["  Impuestos sobre beneficios",{"$f":"'BALANCE-PYG '!B97","v":-3061},{"$f":"'BALANCE-PYG '!C97","v":-2815},{"$f":"'BALANCE-PYG '!D97","v":-2512},{"$f":"'BALANCE-PYG '!E97","v":-2551},{"$f":"'BALANCE-PYG '!F97","v":-2540}]
[]
["RESULTADO DEL EJERCICIO (a)",{"$f":"B111+B113","v":19544},{"$f":"C111+C113","v":11668},{"$f":"D111+D113","v":6927},{"$f":"E111+E113","v":11325},{"$f":"F111+F113","v":13262}]
[]
["RGOC/RPT: Flujo neto de fondos generados",{"$f":"B115-B92-B98-B99-B100-B107-B108-B109","v":39063},{"$f":"C115-C92-C98-C99-C100-C107-C108-C109","v":32706},{"$f":"D115-D92-D98-D99-D100-D107-D108-D109","v":31278},{"$f":"E115-E92-E98-E99-E100-E107-E108-E109","v":32877},{"$f":"F115-F92-F98-F99-F100-F107-F108-F109","v":28519}]
[" (a) - (b) - (c) - (d)- (e) - (f) - (g) - (h)","R.G.O.C.: Recursos Generados por Operaciones Corrientes o R.P.T: Recursos Provenientes de las Operaciones"]

{"sheet":"PORCENTAJES","index":3,"n_rows":128,"n_cols":7,"rows_kept":128,"cut":false,"hidden":false,"merged":[[0,0,1,0],[6,0,8,0],[6,1,8,6],[82,0,83,0],[88,1,90,6],[88,0,90,0],[3,0,4,0],[39,1,40,6]]}
["Porcentajes Verticales y Horizontales","47. COMERCIO AL POR MENOR"]
[]
["Basado en la Ordenación Funcional"]
["Numero de empresas incluidas que permanencen",910,910,910,910,910,910]
[null,2008,2009,2010,2011,2012,"2012-08"]
[null,"%","%","%","%","%","%"]
["BALANCE - PATRIMONO EMPRESARIAL","Porcentajes verticales (importancia relativa de cada masa)    Porcentaje horizontal (intensidad de la variación)"]
[]
[]
["ACTIVO"]
[]
["ACTIVO EXPLOTACIÓN",{"$f":"'Ordenacion Funcional '!B9/'Ordenacion Funcional '!B32","v":0.83857262179548386},{"$f":"'Ordenacion Funcional '!C9/'Ordenacion Funcional '!C32","v":0.82361779143600988},{"$f":"'Ordenacion Funcional '!D9/'Ordenacion Funcional '!D32","v":0.81371543663405466},{"$f":"'Ordenacion Funcional '!E9/'Ordenacion Funcional '!E32","v":0.80887051672786703},{"$f":"'Ordenacion Funcional '!F9/'Ordenacion Funcional '!F32","v":0.79253855394376482},{"$f":"('Ordenacion Funcional '!F9-'Ordenacion Funcional '!B9)/'Ordenacion Funcional '!B9","v":-5.2713210762531396E-2}]
["ACTIVO NO CORRIENTE EXPLOTACIÓN",{"$f":"'Ordenacion Funcional '!B10/'Ordenacion Funcional '!B32","v":0.4112075882150858},{"$f":"'Ordenacion Funcional '!C10/'Ordenacion Funcional '!C32","v":0.40980708969300877},{"$f":"'Ordenacion Funcional '!D10/'Ordenacion Funcional '!D32","v":0.40464219776173949},{"$f":"'Ordenacion Funcional '!E10/'Ordenacion Funcional '!E32","v":0.39817179174813472},{"$f":"'Ordenacion Funcional '!F10/'Ordenacion Funcional '!F32","v":0.38952760673718051},{"$f":"('Ordenacion Funcional '!F10-'Ordenacion Funcional '!B10)/'Ordenacion Funcional '!B10","v":-5.0535166155078075E-2}]
["  Inmovilizado intangible",{"$f":"'Ordenacion Funcional '!B11/'Ordenacion Funcional '!B32","v":6.0564352643022639E-3},{"$f":"'Ordenacion Funcional '!C11/'Ordenacion Funcional '!C32","v":5.7194457857033653E-3},{"$f":"'Ordenacion Funcional '!D11/'Ordenacion Funcional '!D32","v":8.1094982593111955E-3},{"$f":"'Ordenacion Funcional '!E11/'Ordenacion Funcional '!E32","v":9.6732028977339242E-3},{"$f":"'Ordenacion Funcional '!F11/'Ordenacion Funcional '!F32","v":9.2608308576096615E-3},{"$f":"('Ordenacion Funcional '!F11-'Ordenacion Funcional '!B11)/'Ordenacion Funcional '!B11","v":0.53262051467923166}]
["  Inmovilizado material",{"$f":"'Ordenacion Funcional '!B12/'Ordenacion Funcional '!B32","v":0.40141938783686038},{"$f":"'Ordenacion Funcional '!C12/'Ordenacion Funcional '!C32","v":0.39910182703296049},{"$f":"'Ordenacion Funcional '!D12/'Ordenacion Funcional '!D32","v":0.39056617053877429},{"$f":"'Ordenacion Funcional '!E12/'Ordenacion Funcional '!E32","v":0.38183627196386072},{"$f":"'Ordenacion Funcional '!F12/'Ordenacion Funcional '!F32","v":0.37243936438965791},{"$f":"('Ordenacion Funcional '!F12-'Ordenacion Funcional '!B12)/'Ordenacion Funcional '!B12","v":-7.0051294390427968E-2}]
["  Activos por impuesto diferido",{"$f":"'Ordenacion Funcional '!B13/'Ordenacion Funcional '!B32","v":3.7317651139231059E-3},{"$f":"'Ordenacion Funcional '!C13/'Ordenacion Funcional '!C32","v":4.9858168743448757E-3},{"$f":"'Ordenacion Funcional '!D13/'Ordenacion Funcional '!D32","v":5.9665289636539843E-3},{"$f":"'Ordenacion Funcional '!E13/'Ordenacion Funcional '!E32","v":6.6623168865401041E-3},{"$f":"'Ordenacion Funcional '!F13/'Ordenacion Funcional '!F32","v":7.8274114899129551E-3},{"$f":"('Ordenacion Funcional '!F13-'Ordenacion Funcional '!B13)/'Ordenacion Funcional '!B13","v":1.1023529411764705}]
["ACTIVO CORRIENTE EXPLOTACIÓN",{"$f":"'Ordenacion Funcional '!B14/'Ordenacion Funcional '!B32","v":0.42736503358039812},{"$f":"'Ordenacion Funcional '!C14/'Ordenacion Funcional '!C32","v":0.41381070174300111},{"$f":"'Ordenacion Funcional '!D14/'Ordenacion Funcional '!D32","v":0.40907323887231517},{"$f":"'Ordenacion Funcional '!E14/'Ordenacion Funcional '!E32","v":0.41069872497973231},{"$f":"'Ordenacion Funcional '!F14/'Ordenacion Funcional '!F32","v":0.40301094720658431},{"$f":"('Ordenacion Funcional '!F14-'Ordenacion Funcional '!B14)/'Ordenacion Funcional '!B14","v":-5.4808909754450123E-2}]
["  ACTIVOS COMERCIALES",{"$f":"'Ordenacion Funcional '!B15/'Ordenacion Funcional '!B32","v":0.34650426902953252},{"$f":"'Ordenacion Funcional '!C15/'Ordenacion Funcional '!C32","v":0.33290914110422698},{"$f":"'Ordenacion Funcional '!D15/'Ordenacion Funcional '!D32","v":0.32985267762876497},{"$f":"'Ordenacion Funcional '!E15/'Ordenacion Funcional '!E32","v":0.32761322795593573},{"$f":"'Ordenacion Funcional '!F15/'Ordenacion Funcional '!F32","v":0.3197050813566783},{"$f":"('Ordenacion Funcional '!F15-'Ordenacion Funcional '!B15)/'Ordenacion Funcional '!B15","v":-7.5210881250811684E-2}]
["  Existencias",{"$f":"'Ordenacion Funcional '!B16/'Ordenacion Funcional '!B32","v":0.22971319189943551},{"$f":"'Ordenacion Funcional '!C16/'Ordenacion Funcional '!C32","v":0.22185180256033191},{"$f":"'Ordenacion Funcional '!D16/'Ordenacion Funcional '!D32","v":0.2240025555369064},{"$f":"'Ordenacion Funcional '!E16/'Ordenacion Funcional '!E32","v":0.22596168436203465},{"$f":"'Ordenacion Funcional '!F16/'Ordenacion Funcional '!F32","v":0.2240153044072444},{"$f":"('Ordenacion Funcional '!F16-'Ordenacion Funcional '!B16)/'Ordenacion Funcional '!B16","v":-2.2552331442823627E-2}]
["  Clientes por ventas y prestaciones de servicios",{"$f":"'Ordenacion Funcional '!B17/'Ordenacion Funcional '!B32","v":9.6054536454406064E-2},{"$f":"'Ordenacion Funcional '!C17/'Ordenacion Funcional '!C32","v":9.1555128308066946E-2},{"$f":"'Ordenacion Funcional '!D17/'Ordenacion Funcional '!D32","v":8.8885038739124081E-2},{"$f":"'Ordenacion Funcional '!E17/'Ordenacion Funcional '!E32","v":8.4511820274599747E-2},{"$f":"'Ordenacion Funcional '!F17/'Ordenacion Funcional '!F32","v":7.6829745039701011E-2},{"$f":"('Ordenacion Funcional '!F17-'Ordenacion Funcional '!B17)/'Ordenacion Funcional '!B17","v":-0.19829743472547565}]
["  Otros deudores",{"$f":"'Ordenacion Funcional '!B18/'Ordenacion Funcional '!B32","v":2.0736540675690952E-2},{"$f":"'Ordenacion Funcional '!C18/'Ordenacion Funcional '!C32","v":1.9502210235828148E-2},{"$f":"'Ordenacion Funcional '!D18/'Ordenacion Funcional '!D32","v":1.6965083352734479E-2},{"$f":"'Ordenacion Funcional '!E18/'Ordenacion Funcional '!E32","v":1.7139723319301317E-2},{"$f":"'Ordenacion Funcional '!F18/'Ordenacion Funcional '!F32","v":1.8860031909732906E-2},{"$f":"('Ordenacion Funcional '!F18-'Ordenacion Funcional '!B18)/'Ordenacion Funcional '!B18","v":-8.8392526332504107E-2}]
["  TESORERÍA",{"$f":"'Ordenacion Funcional '!B19/'Ordenacion Funcional '!B32","v":8.0860764550865605E-2},{"$f":"'Ordenacion Funcional '!C19/'Ordenacion Funcional '!C32","v":8.09015606387741E-2},{"$f":"'Ordenacion Funcional '!D19/'Ordenacion Funcional '!D32","v":7.9220561243550244E-2},{"$f":"'Ordenacion Funcional '!E19/'Ordenacion Funcional '!E32","v":8.3085497023796626E-2},{"$f":"'Ordenacion Funcional '!F19/'Ordenacion Funcional '!F32","v":8.3305865849905986E-2},{"$f":"('Ordenacion Funcional '!F19-'Ordenacion Funcional '!B19)/'Ordenacion Funcional '!B19","v":3.2617548050819851E-2}]
["  Efectivo y otros activos líquidos equivalentes",{"$f":"'Ordenacion Funcional '!B20/'Ordenacion Funcional '!B32","v":8.0860764550865605E-2},{"$f":"'Ordenacion Funcional '!C20/'Ordenacion Funcional '!C32","v":8.09015606387741E-2},{"$f":"'Ordenacion Funcional '!D20/'Ordenacion Funcional '!D32","v":7.9220561243550244E-2},{"$f":"'Ordenacion Funcional '!E20/'Ordenacion Funcional '!E32","v":8.3085497023796626E-2},{"$f":"'Ordenacion Funcional '!F20/'Ordenacion Funcional '!F32","v":8.3305865849905986E-2},{"$f":"('Ordenacion Funcional '!F20-'Ordenacion Funcional '!B20)/'Ordenacion Funcional '!B20","v":3.2617548050819851E-2}]
[]
[]
["ACTIVO AJENO A LA EXPLOTACIÓN",{"$f":"'Ordenacion Funcional '!B22/'Ordenacion Funcional '!B32","v":0.16142737820451608},{"$f":"'Ordenacion Funcional '!C22/'Ordenacion Funcional '!C32","v":0.17638220856399014},{"$f":"'Ordenacion Funcional '!D22/'Ordenacion Funcional '!D32","v":0.18628456336594532},{"$f":"'Ordenacion Funcional '!E22/'Ordenacion Funcional '!E32","v":0.19112948327213294},{"$f":"'Ordenacion Funcional '!F22/'Ordenacion Funcional '!F32","v":0.20746144605623515},{"$f":"('Ordenacion Funcional '!F22-'Ordenacion Funcional '!B22)/'Ordenacion Funcional '!B22","v":0.28813674562811065}]
["ACTIVO NO CORRIENTE AJENO EXPLOTACIÓN",{"$f":"'Ordenacion Funcional '!B23/'Ordenacion Funcional '!B32","v":0.10468479206934059},{"$f":"'Ordenacion Funcional '!C23/'Ordenacion Funcional '!C32","v":0.11800756506694501},{"$f":"'Ordenacion Funcional '!D23/'Ordenacion Funcional '!D32","v":0.12359269506272436},{"$f":"'Ordenacion Funcional '!E23/'Ordenacion Funcional '!E32","v":0.12564542210931098},{"$f":"'Ordenacion Funcional '!F23/'Ordenacion Funcional '!F32","v":0.13504255908611576},{"$f":"('Ordenacion Funcional '!F23-'Ordenacion Funcional '!B23)/'Ordenacion Funcional '!B23","v":0.29297112541676279}]
["  Inversiones inmobiliarias",{"$f":"'Ordenacion Funcional '!B24/'Ordenacion Funcional '!B32","v":5.2284224402012081E-2},{"$f":"'Ordenacion Funcional '!C24/'Ordenacion Funcional '!C32","v":6.6543551929818007E-2},{"$f":"'Ordenacion Funcional '!D24/'Ordenacion Funcional '!D32","v":7.1053671689307346E-2},{"$f":"'Ordenacion Funcional '!E24/'Ordenacion Funcional '!E32","v":7.0463186553543486E-2},{"$f":"'Ordenacion Funcional '!F24/'Ordenacion Funcional '!F32","v":7.0225503476233603E-2},{"$f":"('Ordenacion Funcional '!F24-'Ordenacion Funcional '!B24)/'Ordenacion Funcional '!B24","v":0.3462507347384331}]
["  Inversiones en empresas del grupo y asociadas a largo plazo",{"$f":"'Ordenacion Funcional '!B25/'Ordenacion Funcional '!B32","v":7.0135232582260723E-3},{"$f":"'Ordenacion Funcional '!C25/'Ordenacion Funcional '!C32","v":5.8998283066370866E-3},{"$f":"'Ordenacion Funcional '!D25/'Ordenacion Funcional '!D32","v":6.3325338256712349E-3},{"$f":"'Ordenacion Funcional '!E25/'Ordenacion Funcional '!E32","v":7.9434066148450343E-3},{"$f":"'Ordenacion Funcional '!F25/'Ordenacion Funcional '!F32","v":7.7671837853878828E-3},{"$f":"('Ordenacion Funcional '!F25-'Ordenacion Funcional '!B25)/'Ordenacion Funcional '!B25","v":0.11001564945226917}]
["  Inversiones financieras a largo plazo",{"$f":"'Ordenacion Funcional '!B26/'Ordenacion Funcional '!B32","v":4.5387044409102434E-2},{"$f":"'Ordenacion Funcional '!C26/'Ordenacion Funcional '!C32","v":4.5564184830489927E-2},{"$f":"'Ordenacion Funcional '!D26/'Ordenacion Funcional '!D32","v":4.6206489547745769E-2},{"$f":"'Ordenacion Funcional '!E26/'Ordenacion Funcional '!E32","v":4.7238828940922468E-2},{"$f":"'Ordenacion Funcional '!F26/'Ordenacion Funcional '!F32","v":5.704987182449428E-2},{"$f":"('Ordenacion Funcional '!F26-'Ordenacion Funcional '!B26)/'Ordenacion Funcional '!B26","v":0.25986651189785259}]
["ACTIVO CORRIENTE AJENO EXPLOTACIÓN",{"$f":"'Ordenacion Funcional '!B27/'Ordenacion Funcional '!B32","v":5.6742586135175507E-2},{"$f":"'Ordenacion Funcional '!C27/'Ordenacion Funcional '!C32","v":5.8374643497045138E-2},{"$f":"'Ordenacion Funcional '!D27/'Ordenacion Funcional '!D32","v":6.2691868303220946E-2},{"$f":"'Ordenacion Funcional '!E27/'Ordenacion Funcional '!E32","v":6.5484061162821947E-2},{"$f":"'Ordenacion Funcional '!F27/'Ordenacion Funcional '!F32","v":7.2418886970119389E-2},{"$f":"('Ordenacion Funcional '!F27-'Ordenacion Funcional '!B27)/'Ordenacion Funcional '!B27","v":0.27921776471043369}]
["  Inversiones en empresas del grupo y asociadas a corto plazo",{"$f":"'Ordenacion Funcional '!B28/'Ordenacion Funcional '!B32","v":3.6362758301256618E-3},{"$f":"'Ordenacion Funcional '!C28/'Ordenacion Funcional '!C32","v":3.1753923044856953E-3},{"$f":"'Ordenacion Funcional '!D28/'Ordenacion Funcional '!D32","v":4.1516646182666742E-3},{"$f":"'Ordenacion Funcional '!E28/'Ordenacion Funcional '!E32","v":4.2822212491817066E-3},{"$f":"'Ordenacion Funcional '!F28/'Ordenacion Funcional '!F32","v":7.8317916866056866E-3},{"$f":"('Ordenacion Funcional '!F28-'Ordenacion Funcional '!B28)/'Ordenacion Funcional '!B28","v":1.1587684877754301}]
["  Inversiones financieras a corto plazo",{"$f":"'Ordenacion Funcional '!B29/'Ordenacion Funcional '!B32","v":5.3106310305049843E-2},{"$f":"'Ordenacion Funcional '!C29/'Ordenacion Funcional '!C32","v":5.5143156628122733E-2},{"$f":"'Ordenacion Funcional '!D29/'Ordenacion Funcional '!D32","v":5.8508800900935042E-2},{"$f":"'Ordenacion Funcional '!E29/'Ordenacion Funcional '!E32","v":6.1201839913640248E-2},{"$f":"'Ordenacion Funcional '!F29/'Ordenacion Funcional '!F32","v":6.457285964426232E-2},{"$f":"('Ordenacion Funcional '!F29-'Ordenacion Funcional '!B29)/'Ordenacion Funcional '!B29","v":0.21872481140849437}]
["  Accionistas (socios) por desembolsos exigidos",{"$f":"'Ordenacion Funcional '!B30/'Ordenacion Funcional '!B32","v":0},{"$f":"'Ordenacion Funcional '!C30/'Ordenacion Funcional '!C32","v":5.6094564436706083E-5},{"$f":"'Ordenacion Funcional '!D30/'Ordenacion Funcional '!D32","v":3.1402784019231497E-5},{"$f":"'Ordenacion Funcional '!E30/'Ordenacion Funcional '!E32","v":0},{"$f":"'Ordenacion Funcional '!F30/'Ordenacion Funcional '!F32","v":1.4235639251380583E-5},{"$f":"IFERROR(('Ordenacion Funcional '!F30-'Ordenacion Funcional '!B30)/'Ordenacion Funcional '!B30,\"----\")","v":"----"}]
[]
["TOTAL ACTIVO ",{"$f":"'Ordenacion Funcional '!B32/'Ordenacion Funcional '!B32","v":1},{"$f":"'Ordenacion Funcional '!C32/'Ordenacion Funcional '!C32","v":1},{"$f":"'Ordenacion Funcional '!D32/'Ordenacion Funcional '!D32","v":1},{"$f":"'Ordenacion Funcional '!E32/'Ordenacion Funcional '!E32","v":1},{"$f":"'Ordenacion Funcional '!F32/'Ordenacion Funcional '!F32","v":1},{"$f":"('Ordenacion Funcional '!F32-'Ordenacion Funcional '!B32)/'Ordenacion Funcional '!B32","v":2.3093040587335925E-3}]
[null,{"$f":"B26+B12","v":1},{"$f":"C26+C12","v":1},1,1,1]
["  Inversiones financieras  total",{"$f":"'Ordenacion Funcional '!B34/'Ordenacion Funcional '!B32","v":9.8493354714152284E-2},{"$f":"'Ordenacion Funcional '!C34/'Ordenacion Funcional '!C32","v":0.10070734145861265},{"$f":"'Ordenacion Funcional '!D34/'Ordenacion Funcional '!D32","v":0.10471529044868082},{"$f":"'Ordenacion Funcional '!E34/'Ordenacion Funcional '!E32","v":0.10844066885456272},{"$f":"'Ordenacion Funcional '!F34/'Ordenacion Funcional '!F32","v":0.1216227314687566},{"$f":"('Ordenacion Funcional '!F34-'Ordenacion Funcional '!B34)/'Ordenacion Funcional '!B34","v":0.23768345275638811}]
["  Inversiones en empresas del grupo y asociadas total",{"$f":"'Ordenacion Funcional '!B35/'Ordenacion Funcional '!B32","v":1.0649799088351734E-2},{"$f":"'Ordenacion Funcional '!C35/'Ordenacion Funcional '!C32","v":9.0752206111227827E-3},{"$f":"'Ordenacion Funcional '!D35/'Ordenacion Funcional '!D32","v":1.0484198443937909E-2},{"$f":"'Ordenacion Funcional '!E35/'Ordenacion Funcional '!E32","v":1.222562786402674E-2},{"$f":"'Ordenacion Funcional '!F35/'Ordenacion Funcional '!F32","v":1.559897547199357E-2},{"$f":"('Ordenacion Funcional '!F35-'Ordenacion Funcional '!B35)/'Ordenacion Funcional '!B35","v":0.46810264866536122}]
[null,"Porcentajes verticales (importancia relativa de cada masa)                           Porcentaje horizontal (intensidad de la variación)"]
[]
["PATRIMONIO NETO",{"$f":"'Ordenacion Funcional '!B37/'Ordenacion Funcional '!$B$73","v":0.47846497134772698},{"$f":"'Ordenacion Funcional '!C37/'Ordenacion Funcional '!C73","v":0.50112794070254596},{"$f":"'Ordenacion Funcional '!D37/'Ordenacion Funcional '!D73","v":0.50521340357450306},{"$f":"'Ordenacion Funcional '!E37/'Ordenacion Funcional '!E73","v":0.51588789706194749},{"$f":"'Ordenacion Funcional '!F37/'Ordenacion Funcional '!F73","v":0.53891530999199522},{"$f":"('Ordenacion Funcional '!F37-'Ordenacion Funcional '!B37)/'Ordenacion Funcional '!B37","v":0.12894331173955331}]
["  Fondos propios",{"$f":"'Ordenacion Funcional '!B38/'Ordenacion Funcional '!$B$73","v":0.47761215326139805},{"$f":"'Ordenacion Funcional '!C38/'Ordenacion Funcional '!C73","v":0.50028872202283603},{"$f":"'Ordenacion Funcional '!D38/'Ordenacion Funcional '!D73","v":0.50436552840598381},{"$f":"'Ordenacion Funcional '!E38/'Ordenacion Funcional '!E73","v":0.51501974742373069},{"$f":"'Ordenacion Funcional '!F38/'Ordenacion Funcional '!F73","v":0.5382571854389121},{"$f":"('Ordenacion Funcional '!F38-'Ordenacion Funcional '!B38)/'Ordenacion Funcional '!B38","v":0.12957800855335275}]
["  Capital",{"$f":"'Ordenacion Funcional '!B39/'Ordenacion Funcional '!$B$73","v":7.5412387484537866E-2},{"$f":"'Ordenacion Funcional '!C39/'Ordenacion Funcional '!C73","v":7.8213421119493517E-2},{"$f":"'Ordenacion Funcional '!D39/'Ordenacion Funcional '!D73","v":7.9551914757684208E-2},{"$f":"'Ordenacion Funcional '!E39/'Ordenacion Funcional '!E73","v":8.1675431256855238E-2},{"$f":"'Ordenacion Funcional '!F39/'Ordenacion Funcional '!F73","v":8.6125617470852525E-2},{"$f":"('Ordenacion Funcional '!F39-'Ordenacion Funcional '!B39)/'Ordenacion Funcional '!B39","v":0.14469930721313384}]
["    Capital escriturado",{"$f":"'Ordenacion Funcional '!B40/'Ordenacion Funcional '!$B$73","v":7.5412387484537866E-2},{"$f":"'Ordenacion Funcional '!C40/'Ordenacion Funcional '!C73","v":7.8213421119493517E-2},{"$f":"'Ordenacion Funcional '!D40/'Ordenacion Funcional '!D73","v":7.9551914757684208E-2},{"$f":"'Ordenacion Funcional '!E40/'Ordenacion Funcional '!E73","v":8.1675431256855238E-2},{"$f":"'Ordenacion Funcional '!F40/'Ordenacion Funcional '!F73","v":8.6125617470852525E-2},{"$f":"('Ordenacion Funcional '!F40-'Ordenacion Funcional '!B40)/'Ordenacion Funcional '!B40","v":0.14469930721313384}]
["    (Capital no exigido)",{"$f":"'Ordenacion Funcional '!B41/'Ordenacion Funcional '!$B$73","v":0},{"$f":"'Ordenacion Funcional '!C41/'Ordenacion Funcional '!C73","v":0},{"$f":"'Ordenacion Funcional '!D41/'Ordenacion Funcional '!D73","v":0},{"$f":"'Ordenacion Funcional '!E41/'Ordenacion Funcional '!E73","v":0},{"$f":"'Ordenacion Funcional '!F41/'Ordenacion Funcional '!F73","v":0},{"$f":"IFERROR(('Ordenacion Funcional '!F41-'Ordenacion Funcional '!B41)/'Ordenacion Funcional '!B41,\"----\")","v":"----"}]
["  Prima de emisión",{"$f":"'Ordenacion Funcional '!B42/'Ordenacion Funcional '!$B$73","v":6.1003383832895948E-3},{"$f":"'Ordenacion Funcional '!C42/'Ordenacion Funcional '!C73","v":6.0406146644390157E-3},{"$f":"'Ordenacion Funcional '!D42/'Ordenacion Funcional '!D73","v":9.105724510955782E-3},{"$f":"'Ordenacion Funcional '!E42/'Ordenacion Funcional '!E73","v":9.04349635615595E-3},{"$f":"'Ordenacion Funcional '!F42/'Ordenacion Funcional '!F73","v":9.060436858917149E-3},{"$f":"('Ordenacion Funcional '!F42-'Ordenacion Funcional '!B42)/'Ordenacion Funcional '!B42","v":0.48866498740554154}]
["  Reservas",{"$f":"'Ordenacion Funcional '!B43/'Ordenacion Funcional '!$B$73","v":0.36731873774142598},{"$f":"'Ordenacion Funcional '!C43/'Ordenacion Funcional '!C73","v":0.3950047240422403},{"$f":"'Ordenacion Funcional '!D43/'Ordenacion Funcional '!D73","v":0.41229256566159711},{"$f":"'Ordenacion Funcional '!E43/'Ordenacion Funcional '!E73","v":0.42593090352592311},{"$f":"'Ordenacion Funcional '!F43/'Ordenacion Funcional '!F73","v":0.45211514223046184},{"$f":"('Ordenacion Funcional '!F43-'Ordenacion Funcional '!B43)/'Ordenacion Funcional '!B43","v":0.23369479147679906}]
["  (Acciones y participaciones en patrimonio propias)",{"$f":"'Ordenacion Funcional '!B44/'Ordenacion Funcional '!$B$73","v":-2.093081197720989E-3},{"$f":"'Ordenacion Funcional '!C44/'Ordenacion Funcional '!C73","v":-1.5486499358212189E-3},{"$f":"'Ordenacion Funcional '!D44/'Ordenacion Funcional '!D73","v":-1.524659306864757E-3},{"$f":"'Ordenacion Funcional '!E44/'Ordenacion Funcional '!E73","v":0},{"$f":"'Ordenacion Funcional '!F44/'Ordenacion Funcional '!F73","v":0},{"$f":"('Ordenacion Funcional '!F44-'Ordenacion Funcional '!B44)/'Ordenacion Funcional '!B44","v":-1}]
["  Resultados de ejercicios anteriores",{"$f":"'Ordenacion Funcional '!B45/'Ordenacion Funcional '!$B$73","v":8.9397726037952051E-3},{"$f":"'Ordenacion Funcional '!C45/'Ordenacion Funcional '!C73","v":4.7691378705403444E-3},{"$f":"'Ordenacion Funcional '!D45/'Ordenacion Funcional '!D73","v":-7.3114344033741747E-3},{"$f":"'Ordenacion Funcional '!E45/'Ordenacion Funcional '!E73","v":-2.0455166194838358E-2},{"$f":"'Ordenacion Funcional '!F45/'Ordenacion Funcional '!F73","v":-3.0683277832591071E-2},{"$f":"('Ordenacion Funcional '!F45-'Ordenacion Funcional '!B45)/'Ordenacion Funcional '!B45","v":-4.4401473296500917}]
["  Otras aportaciones de socios",{"$f":"'Ordenacion Funcional '!B46/'Ordenacion Funcional '!$B$73","v":4.8622704278468703E-4},{"$f":"'Ordenacion Funcional '!C46/'Ordenacion Funcional '!C73","v":4.990216448026186E-3},{"$f":"'Ordenacion Funcional '!D46/'Ordenacion Funcional '!D73","v":4.9432313464755793E-3},{"$f":"'Ordenacion Funcional '!E46/'Ordenacion Funcional '!E73","v":6.8357300477319728E-3},{"$f":"'Ordenacion Funcional '!F46/'Ordenacion Funcional '!F73","v":7.284267100014126E-3},{"$f":"('Ordenacion Funcional '!F46-'Ordenacion Funcional '!B46)/'Ordenacion Funcional '!B46","v":14.015801354401805}]
["  Resultado del ejercicio",{"$f":"'Ordenacion Funcional '!B47/'Ordenacion Funcional '!$B$73","v":2.1451063937209761E-2},{"$f":"'Ordenacion Funcional '!C47/'Ordenacion Funcional '!C73","v":1.283355642838209E-2},{"$f":"'Ordenacion Funcional '!D47/'Ordenacion Funcional '!D73","v":7.5009339621109165E-3},{"$f":"'Ordenacion Funcional '!E47/'Ordenacion Funcional '!E73","v":1.2274400315611953E-2},{"$f":"'Ordenacion Funcional '!F47/'Ordenacion Funcional '!F73","v":1.4522542134754561E-2},{"$f":"('Ordenacion Funcional '!F47-'Ordenacion Funcional '!B47)/'Ordenacion Funcional '!B47","v":-0.32142857142857145}]
["  (Dividendo a cuenta)",{"$f":"'Ordenacion Funcional '!B48/'Ordenacion Funcional '!$B$73","v":-3.2927339240497993E-6},{"$f":"'Ordenacion Funcional '!C48/'Ordenacion Funcional '!C73","v":-1.4298614464258413E-5},{"$f":"'Ordenacion Funcional '!D48/'Ordenacion Funcional '!D73","v":-1.9274812260080022E-4},{"$f":"'Ordenacion Funcional '!E48/'Ordenacion Funcional '!E73","v":-2.8504788370913411E-4},{"$f":"'Ordenacion Funcional '!F48/'Ordenacion Funcional '!F73","v":-1.6754252349701764E-4},{"$f":"('Ordenacion Funcional '!F48-'Ordenacion Funcional '!B48)/'Ordenacion Funcional '!B48","v":50}]
["  Subvenciones, donaciones y legados recibidos",{"$f":"'Ordenacion Funcional '!B49/'Ordenacion Funcional '!$B$73","v":8.52818086328898E-4},{"$f":"'Ordenacion Funcional '!C49/'Ordenacion Funcional '!C73","v":8.392186797099361E-4},{"$f":"'Ordenacion Funcional '!D49/'Ordenacion Funcional '!D73","v":8.4787516851925042E-4},{"$f":"'Ordenacion Funcional '!E49/'Ordenacion Funcional '!E73","v":8.6814963821679248E-4},{"$f":"'Ordenacion Funcional '!F49/'Ordenacion Funcional '!F73","v":6.5812455308305619E-4},{"$f":"('Ordenacion Funcional '!F49-'Ordenacion Funcional '!B49)/'Ordenacion Funcional '!B49","v":-0.22651222651222652}]
[]
["PASIVO TOTAL",{"$f":"'Ordenacion Funcional '!B51/'Ordenacion Funcional '!B73","v":0.52153502865227308},{"$f":"'Ordenacion Funcional '!C51/'Ordenacion Funcional '!C73","v":0.4988720592974541},{"$f":"'Ordenacion Funcional '!D51/'Ordenacion Funcional '!D73","v":0.49478659642549688},{"$f":"'Ordenacion Funcional '!E51/'Ordenacion Funcional '!E73","v":0.48411210293805246},{"$f":"'Ordenacion Funcional '!F51/'Ordenacion Funcional '!F73","v":0.46108469000800478},{"$f":"('Ordenacion Funcional '!F51-'Ordenacion Funcional '!B51)/'Ordenacion Funcional '!B51","v":-0.11386685579236019}]
["PASIVO NO CORRIENTE",{"$f":"'Ordenacion Funcional '!B52/'Ordenacion Funcional '!B73","v":0.22477189585741145},{"$f":"'Ordenacion Funcional '!C52/'Ordenacion Funcional '!C73","v":0.2324437761980864},{"$f":"'Ordenacion Funcional '!D52/'Ordenacion Funcional '!D73","v":0.22763011851843831},{"$f":"'Ordenacion Funcional '!E52/'Ordenacion Funcional '!E73","v":0.21776357716668907},{"$f":"'Ordenacion Funcional '!F52/'Ordenacion Funcional '!F73","v":0.2058363930832314},{"$f":"('Ordenacion Funcional '!F52-'Ordenacion Funcional '!B52)/'Ordenacion Funcional '!B52","v":-8.212843463271953E-2}]
["CRÉDITOS PUROS A LARGO PLAZO",{"$f":"'Ordenacion Funcional '!B53/'Ordenacion Funcional '!B73","v":0.22400029854120912},{"$f":"'Ordenacion Funcional '!C53/'Ordenacion Funcional '!C73","v":0.23164745336176926},{"$f":"'Ordenacion Funcional '!D53/'Ordenacion Funcional '!D73","v":0.22637725572153311},{"$f":"'Ordenacion Funcional '!E53/'Ordenacion Funcional '!E73","v":0.21684231974785725},{"$f":"'Ordenacion Funcional '!F53/'Ordenacion Funcional '!F73","v":0.20502934184259544},{"$f":"('Ordenacion Funcional '!F53-'Ordenacion Funcional '!B53)/'Ordenacion Funcional '!B53","v":-8.2577932832237397E-2}]
["  Deudas con entidades de crédito",{"$f":"'Ordenacion Funcional '!B54/'Ordenacion Funcional '!B73","v":0.18782193333969929},{"$f":"'Ordenacion Funcional '!C54/'Ordenacion Funcional '!C73","v":0.20245738187969586},{"$f":"'Ordenacion Funcional '!D54/'Ordenacion Funcional '!D73","v":0.19780072226403245},{"$f":"'Ordenacion Funcional '!E54/'Ordenacion Funcional '!E73","v":0.18575042377841267},{"$f":"'Ordenacion Funcional '!F54/'Ordenacion Funcional '!F73","v":0.17412267397867501},{"$f":"('Ordenacion Funcional '!F54-'Ordenacion Funcional '!B54)/'Ordenacion Funcional '!B54","v":-7.0796615319885001E-2}]
["  Deudas con empresas del grupo y asociadas a largo plazo",{"$f":"'Ordenacion Funcional '!B55/'Ordenacion Funcional '!B73","v":4.7700738779734757E-3},{"$f":"'Ordenacion Funcional '!C55/'Ordenacion Funcional '!C73","v":5.2772886307316819E-3},{"$f":"'Ordenacion Funcional '!D55/'Ordenacion Funcional '!D73","v":2.1072350931525688E-3},{"$f":"'Ordenacion Funcional '!E55/'Ordenacion Funcional '!E73","v":1.8967064505360635E-3},{"$f":"'Ordenacion Funcional '!F55/'Ordenacion Funcional '!F73","v":2.5777457536730686E-3},{"$f":"('Ordenacion Funcional '!F55-'Ordenacion Funcional '!B55)/'Ordenacion Funcional '!B55","v":-0.4583525080533824}]
["  Otras deudas a largo plazo",{"$f":"'Ordenacion Funcional '!B56/'Ordenacion Funcional '!B73","v":3.1408291323536355E-2},{"$f":"'Ordenacion Funcional '!C56/'Ordenacion Funcional '!C73","v":2.3912782851341706E-2},{"$f":"'Ordenacion Funcional '!D56/'Ordenacion Funcional '!D73","v":2.6469298364348096E-2},{"$f":"'Ordenacion Funcional '!E56/'Ordenacion Funcional '!E73","v":2.9195189518908538E-2},{"$f":"'Ordenacion Funcional '!F56/'Ordenacion Funcional '!F73","v":2.8328922110247359E-2},{"$f":"('Ordenacion Funcional '!F56-'Ordenacion Funcional '!B56)/'Ordenacion Funcional '!B56","v":-9.5960301928990771E-2}]
["OTROS PASIVOS NO CORRIENTES",{"$f":"'Ordenacion Funcional '!B57/'Ordenacion Funcional '!B73","v":7.7159731620233629E-4},{"$f":"'Ordenacion Funcional '!C57/'Ordenacion Funcional '!C73","v":7.9632283631716084E-4},{"$f":"'Ordenacion Funcional '!D57/'Ordenacion Funcional '!D73","v":1.2528627969052015E-3},{"$f":"'Ordenacion Funcional '!E57/'Ordenacion Funcional '!E73","v":9.2125741883180223E-4},{"$f":"'Ordenacion Funcional '!F57/'Ordenacion Funcional '!F73","v":8.0705124063596074E-4},{"$f":"('Ordenacion Funcional '!F57-'Ordenacion Funcional '!B57)/'Ordenacion Funcional '!B57","v":4.8364153627311522E-2}]
["  Provisiones a largo plazo",{"$f":"'Ordenacion Funcional '!B58/'Ordenacion Funcional '!B73","v":3.2707823645561341E-4},{"$f":"'Ordenacion Funcional '!C58/'Ordenacion Funcional '!C73","v":3.332677063592538E-4},{"$f":"'Ordenacion Funcional '!D58/'Ordenacion Funcional '!D73","v":5.3168161908422984E-4},{"$f":"'Ordenacion Funcional '!E58/'Ordenacion Funcional '!E73","v":3.3382033529434716E-4},{"$f":"'Ordenacion Funcional '!F58/'Ordenacion Funcional '!F73","v":3.2084940774265469E-4},{"$f":"('Ordenacion Funcional '!F58-'Ordenacion Funcional '!B58)/'Ordenacion Funcional '!B58","v":-1.6778523489932886E-2}]
["  Pasivos por impuesto diferido",{"$f":"'Ordenacion Funcional '!B59/'Ordenacion Funcional '!B73","v":3.7646924531636037E-4},{"$f":"'Ordenacion Funcional '!C59/'Ordenacion Funcional '!C73","v":3.7176397607071877E-4},{"$f":"'Ordenacion Funcional '!D59/'Ordenacion Funcional '!D73","v":3.2377353178449027E-4},{"$f":"'Ordenacion Funcional '!E59/'Ordenacion Funcional '!E73","v":3.20814348204957E-4},{"$f":"'Ordenacion Funcional '!F59/'Ordenacion Funcional '!F73","v":3.0442367014490784E-4},{"$f":"('Ordenacion Funcional '!F59-'Ordenacion Funcional '!B59)/'Ordenacion Funcional '!B59","v":-0.18950437317784258}]
["  Periodificaciones a largo plazo",{"$f":"'Ordenacion Funcional '!B60/'Ordenacion Funcional '!B73","v":6.8049834430362519E-5},{"$f":"'Ordenacion Funcional '!C60/'Ordenacion Funcional '!C73","v":9.1291153887188329E-5},{"$f":"'Ordenacion Funcional '!D60/'Ordenacion Funcional '!D73","v":3.9740764603648138E-4},{"$f":"'Ordenacion Funcional '!E60/'Ordenacion Funcional '!E73","v":2.6662273533249807E-4},{"$f":"'Ordenacion Funcional '!F60/'Ordenacion Funcional '!F73","v":1.8177816274839821E-4},{"$f":"('Ordenacion Funcional '!F60-'Ordenacion Funcional '!B60)/'Ordenacion Funcional '!B60","v":1.6774193548387097}]
[]
["PASIVO CORRIENTE",{"$f":"'Ordenacion Funcional '!B62/'Ordenacion Funcional '!B73","v":0.29676313279486161},{"$f":"'Ordenacion Funcional '!C62/'Ordenacion Funcional '!C73","v":0.26642828309936767},{"$f":"'Ordenacion Funcional '!D62/'Ordenacion Funcional '!D73","v":0.2671564779070586},{"$f":"'Ordenacion Funcional '!E62/'Ordenacion Funcional '!E73","v":0.26634852577136342},{"$f":"'Ordenacion Funcional '!F62/'Ordenacion Funcional '!F73","v":0.25524829692477341},{"$f":"('Ordenacion Funcional '!F62-'Ordenacion Funcional '!B62)/'Ordenacion Funcional '!B62","v":-0.13790591020045861}]
["PASIVOS COMERCIALES",{"$f":"'Ordenacion Funcional '!B63/'Ordenacion Funcional '!B73","v":0.19389153953969776},{"$f":"'Ordenacion Funcional '!C63/'Ordenacion Funcional '!C73","v":0.17406913270104127},{"$f":"'Ordenacion Funcional '!D63/'Ordenacion Funcional '!D73","v":0.1732415794517507},{"$f":"'Ordenacion Funcional '!E63/'Ordenacion Funcional '!E73","v":0.17581601730663349},{"$f":"'Ordenacion Funcional '!F63/'Ordenacion Funcional '!F73","v":0.16623393973506381},{"$f":"('Ordenacion Funcional '!F63-'Ordenacion Funcional '!B63)/'Ordenacion Funcional '!B63","v":-0.14066480238205759}]
["  Proveedores",{"$f":"'Ordenacion Funcional '!B64/'Ordenacion Funcional '!B73","v":0.14044388248452142},{"$f":"'Ordenacion Funcional '!C64/'Ordenacion Funcional '!C73","v":0.12600489012614677},{"$f":"'Ordenacion Funcional '!D64/'Ordenacion Funcional '!D73","v":0.12781041381289354},{"$f":"'Ordenacion Funcional '!E64/'Ordenacion Funcional '!E73","v":0.12720505672778035},{"$f":"'Ordenacion Funcional '!F64/'Ordenacion Funcional '!F73","v":0.11744621392223618},{"$f":"('Ordenacion Funcional '!F64-'Ordenacion Funcional '!B64)/'Ordenacion Funcional '!B64","v":-0.16181872176808015}]
["  Otros acreedores",{"$f":"'Ordenacion Funcional '!B65/'Ordenacion Funcional '!B73","v":5.3447657055176345E-2},{"$f":"'Ordenacion Funcional '!C65/'Ordenacion Funcional '!C73","v":4.8064242574894493E-2},{"$f":"'Ordenacion Funcional '!D65/'Ordenacion Funcional '!D73","v":4.5431165638857157E-2},{"$f":"'Ordenacion Funcional '!E65/'Ordenacion Funcional '!E73","v":4.8610960578853134E-2},{"$f":"'Ordenacion Funcional '!F65/'Ordenacion Funcional '!F73","v":4.8787725812827622E-2},{"$f":"('Ordenacion Funcional '!F65-'Ordenacion Funcional '!B65)/'Ordenacion Funcional '!B65","v":-8.5078856579595866E-2}]
["CRÉDITOS PUROS A CORTO PLAZO",{"$f":"'Ordenacion Funcional '!B66/'Ordenacion Funcional '!B73","v":0.10253683197288543},{"$f":"'Ordenacion Funcional '!C66/'Ordenacion Funcional '!C73","v":9.2171068623450383E-2},{"$f":"'Ordenacion Funcional '!D66/'Ordenacion Funcional '!D73","v":9.3706990368008142E-2},{"$f":"'Ordenacion Funcional '!E66/'Ordenacion Funcional '!E73","v":9.0103310890780053E-2},{"$f":"'Ordenacion Funcional '!F66/'Ordenacion Funcional '!F73","v":8.88654305021567E-2},{"$f":"('Ordenacion Funcional '!F66-'Ordenacion Funcional '!B66)/'Ordenacion Funcional '!B66","v":-0.13133021483392385}]
["  Deudas con entidades de crédito",{"$f":"'Ordenacion Funcional '!B67/'Ordenacion Funcional '!B73","v":4.4496908671634305E-2},{"$f":"'Ordenacion Funcional '!C67/'Ordenacion Funcional '!C73","v":4.0960030972998718E-2},{"$f":"'Ordenacion Funcional '!D67/'Ordenacion Funcional '!D73","v":3.7618369545796629E-2},{"$f":"'Ordenacion Funcional '!E67/'Ordenacion Funcional '!E73","v":3.244126712996883E-2},{"$f":"'Ordenacion Funcional '!F67/'Ordenacion Funcional '!F73","v":3.0060194853049876E-2},{"$f":"('Ordenacion Funcional '!F67-'Ordenacion Funcional '!B67)/'Ordenacion Funcional '!B67","v":-0.32288300732591696}]
["  Deudas con empresas del grupo y asociadas a corto plazo",{"$f":"'Ordenacion Funcional '!B68/'Ordenacion Funcional '!B73","v":3.864572048859781E-3},{"$f":"'Ordenacion Funcional '!C68/'Ordenacion Funcional '!C73","v":3.6296482870809819E-3},{"$f":"'Ordenacion Funcional '!D68/'Ordenacion Funcional '!D73","v":7.5193424906739147E-3},{"$f":"'Ordenacion Funcional '!E68/'Ordenacion Funcional '!E73","v":6.3295803835032062E-3},{"$f":"'Ordenacion Funcional '!F68/'Ordenacion Funcional '!F73","v":5.4303488498151009E-3},{"$f":"('Ordenacion Funcional '!F68-'Ordenacion Funcional '!B68)/'Ordenacion Funcional '!B68","v":0.40840670264129508}]
["  Otras deudas a corto plazo",{"$f":"'Ordenacion Funcional '!B69/'Ordenacion Funcional '!B73","v":5.4175351252391347E-2},{"$f":"'Ordenacion Funcional '!C69/'Ordenacion Funcional '!C73","v":4.7581389363370689E-2},{"$f":"'Ordenacion Funcional '!D69/'Ordenacion Funcional '!D73","v":4.8569278331537596E-2},{"$f":"'Ordenacion Funcional '!E69/'Ordenacion Funcional '!E73","v":5.133246337730802E-2},{"$f":"'Ordenacion Funcional '!F69/'Ordenacion Funcional '!F73","v":5.3374886799291719E-2},{"$f":"('Ordenacion Funcional '!F69-'Ordenacion Funcional '!B69)/'Ordenacion Funcional '!B69","v":-1.2500253246621689E-2}]
["OTROS PASIVOS CORRIENTES",{"$f":"'Ordenacion Funcional '!B70/'Ordenacion Funcional '!B73","v":3.3476128227839628E-4},{"$f":"'Ordenacion Funcional '!C70/'Ordenacion Funcional '!C73","v":1.8808177487601453E-4},{"$f":"'Ordenacion Funcional '!D70/'Ordenacion Funcional '!D73","v":2.0790808729973957E-4},{"$f":"'Ordenacion Funcional '!E70/'Ordenacion Funcional '!E73","v":4.2919757394987491E-4},{"$f":"'Ordenacion Funcional '!F70/'Ordenacion Funcional '!F73","v":1.4892668755290457E-4},{"$f":"('Ordenacion Funcional '!F70-'Ordenacion Funcional '!B70)/'Ordenacion Funcional '!B70","v":-0.5540983606557377}]
["  Provisiones a corto plazo",{"$f":"'Ordenacion Funcional '!B71/'Ordenacion Funcional '!B73","v":3.3476128227839628E-4},{"$f":"'Ordenacion Funcional '!C71/'Ordenacion Funcional '!C73","v":1.8808177487601453E-4},{"$f":"'Ordenacion Funcional '!D71/'Ordenacion Funcional '!D73","v":2.0790808729973957E-4},{"$f":"'Ordenacion Funcional '!E71/'Ordenacion Funcional '!E73","v":4.2919757394987491E-4},{"$f":"'Ordenacion Funcional '!F71/'Ordenacion Funcional '!F73","v":1.4892668755290457E-4},{"$f":"('Ordenacion Funcional '!F71-'Ordenacion Funcional '!B71)/'Ordenacion Funcional '!B71","v":-0.5540983606557377}]
[]
["TOTAL PATRIMONIO NETO Y PASIVO ",{"$f":"'Ordenacion Funcional '!B73/'Ordenacion Funcional '!B73","v":1},{"$f":"'Ordenacion Funcional '!C73/'Ordenacion Funcional '!C73","v":1},{"$f":"'Ordenacion Funcional '!D73/'Ordenacion Funcional '!D73","v":1},{"$f":"'Ordenacion Funcional '!E73/'Ordenacion Funcional '!E73","v":1},{"$f":"'Ordenacion Funcional '!F73/'Ordenacion Funcional '!F73","v":1},{"$f":"('Ordenacion Funcional '!F73-'Ordenacion Funcional '!B73)/'Ordenacion Funcional '!B73","v":2.3093040587335925E-3}]
[]
["  Deudas con entidades de crédito total",{"$f":"'Ordenacion Funcional '!B75/'Ordenacion Funcional '!B73","v":0.2323188420113336},{"$f":"'Ordenacion Funcional '!C75/'Ordenacion Funcional '!C73","v":0.24341741285269458},{"$f":"'Ordenacion Funcional '!D75/'Ordenacion Funcional '!D73","v":0.23541909180982906},{"$f":"'Ordenacion Funcional '!E75/'Ordenacion Funcional '!E73","v":0.2181916909083815},{"$f":"'Ordenacion Funcional '!F75/'Ordenacion Funcional '!F73","v":0.2041828688317249},{"$f":"('Ordenacion Funcional '!F75-'Ordenacion Funcional '!B75)/'Ordenacion Funcional '!B75","v":-0.11907967779273852}]
["  Deudas con empresas del grupo y asociadas total",{"$f":"'Ordenacion Funcional '!B76/'Ordenacion Funcional '!B73","v":8.6346459268332575E-3},{"$f":"'Ordenacion Funcional '!C76/'Ordenacion Funcional '!C73","v":8.9069369178126634E-3},{"$f":"'Ordenacion Funcional '!D76/'Ordenacion Funcional '!D73","v":9.6265775838264827E-3},{"$f":"'Ordenacion Funcional '!E76/'Ordenacion Funcional '!E73","v":8.2262868340392693E-3},{"$f":"'Ordenacion Funcional '!F76/'Ordenacion Funcional '!F73","v":8.0080946034881695E-3},{"$f":"('Ordenacion Funcional '!F76-'Ordenacion Funcional '!B76)/'Ordenacion Funcional '!B76","v":-7.0420744883691364E-2}]
[]
["Porcentajes Verticales y Horizontales","47. COMERCIO AL POR MENOR"]
[]
["Basado en la Ordenación Funcional"]
[{"$f":"A4","v":"Numero de empresas incluidas que permanencen"},{"$f":"B4","v":910},{"$f":"C4","v":910},910,910,910,910]
[]
[]
["CUENTA DE PÉRDIDAS Y GANANCIAS","Porcentajes verticales (importancia relativa de cada masa)    Porcentaje horizontal (intensidad de la variación)"]
[]
[]
[null,{"$f":"B5","v":2008},{"$f":"C5","v":2009},2010,2011,2012,"2012-08"]
[null,"%","%","%","%","%","%"]
["  Importe neto de la cifra de negocios",{"$f":"'Ordenacion Funcional '!B83/'Ordenacion Funcional '!B83","v":1},{"$f":"'Ordenacion Funcional '!C83/'Ordenacion Funcional '!C83","v":1},{"$f":"'Ordenacion Funcional '!D83/'Ordenacion Funcional '!D83","v":1},{"$f":"'Ordenacion Funcional '!E83/'Ordenacion Funcional '!E83","v":1},{"$f":"'Ordenacion Funcional '!F83/'Ordenacion Funcional '!F83","v":1},{"$f":"('Ordenacion Funcional '!F83-'Ordenacion Funcional '!B83)/'Ordenacion Funcional '!B83","v":-0.1266297512783576}]
["  Consumo de existencias",{"$f":"'Ordenacion Funcional '!B84/'Ordenacion Funcional '!B83","v":-0.71180715062618816},{"$f":"'Ordenacion Funcional '!C84/'Ordenacion Funcional '!C83","v":-0.68723696402058521},{"$f":"'Ordenacion Funcional '!D84/'Ordenacion Funcional '!D83","v":-0.69583228706692224},{"$f":"'Ordenacion Funcional '!E84/'Ordenacion Funcional '!E83","v":-0.70054580938620048},{"$f":"'Ordenacion Funcional '!F84/'Ordenacion Funcional '!F83","v":-0.70209371908909612},{"$f":"('Ordenacion Funcional '!F84-'Ordenacion Funcional '!B84)/'Ordenacion Funcional '!B84","v":-0.13854789808262574}]
["  Aprovisionamientos",{"$f":"'Ordenacion Funcional '!B85/'Ordenacion Funcional '!B83","v":-0.71022244982049743},{"$f":"'Ordenacion Funcional '!C85/'Ordenacion Funcional '!C83","v":-0.6875544987602501},{"$f":"'Ordenacion Funcional '!D85/'Ordenacion Funcional '!D83","v":-0.69681342977357774},{"$f":"'Ordenacion Funcional '!E85/'Ordenacion Funcional '!E83","v":-0.7017982907453818},{"$f":"'Ordenacion Funcional '!F85/'Ordenacion Funcional '!F83","v":-0.70163055595589607},{"$f":"('Ordenacion Funcional '!F85-'Ordenacion Funcional '!B85)/'Ordenacion Funcional '!B85","v":-0.13719532053544514}]
["  Variación de existencias de productos terminados y en curso de fabricación",{"$f":"'Ordenacion Funcional '!B86/'Ordenacion Funcional '!B83","v":-1.5847008056907219E-3},{"$f":"'Ordenacion Funcional '!C86/'Ordenacion Funcional '!C83","v":3.1753473966492643E-4},{"$f":"'Ordenacion Funcional '!D86/'Ordenacion Funcional '!D83","v":9.8114270665547931E-4},{"$f":"'Ordenacion Funcional '!E86/'Ordenacion Funcional '!E83","v":1.2524813591812979E-3},{"$f":"'Ordenacion Funcional '!F86/'Ordenacion Funcional '!F83","v":-4.6316313320005076E-4},{"$f":"('Ordenacion Funcional '!F86-'Ordenacion Funcional '!B86)/'Ordenacion Funcional '!B86","v":-0.74473862864901563}]
[]
["RESULTADO BRUTO DE EXPLOTACIÓN",{"$f":"'Ordenacion Funcional '!B88/'Ordenacion Funcional '!B83","v":0.2881928493738119},{"$f":"'Ordenacion Funcional '!C88/'Ordenacion Funcional '!C83","v":0.31276303597941479},{"$f":"'Ordenacion Funcional '!D88/'Ordenacion Funcional '!D83","v":0.30416771293307776},{"$f":"'Ordenacion Funcional '!E88/'Ordenacion Funcional '!E83","v":0.29945419061379952},{"$f":"'Ordenacion Funcional '!F88/'Ordenacion Funcional '!F83","v":0.29790628091090393},{"$f":"('Ordenacion Funcional '!F88-'Ordenacion Funcional '!B88)/'Ordenacion Funcional '!B88","v":-9.7193135706792999E-2}]
[]
["  Gastos de personal",{"$f":"'Ordenacion Funcional '!B90/'Ordenacion Funcional '!B83","v":-0.14085655606753214},{"$f":"'Ordenacion Funcional '!C90/'Ordenacion Funcional '!C83","v":-0.15716233095306315},{"$f":"'Ordenacion Funcional '!D90/'Ordenacion Funcional '!D83","v":-0.1548368130623044},{"$f":"'Ordenacion Funcional '!E90/'Ordenacion Funcional '!E83","v":-0.15378272077672966},{"$f":"'Ordenacion Funcional '!F90/'Ordenacion Funcional '!F83","v":-0.15572135810270643},{"$f":"('Ordenacion Funcional '!F90-'Ordenacion Funcional '!B90)/'Ordenacion Funcional '!B90","v":-3.446168886716363E-2}]
["  Otros gastos de explotación",{"$f":"'Ordenacion Funcional '!B91/'Ordenacion Funcional '!B83","v":-0.11084836898461883},{"$f":"'Ordenacion Funcional '!C91/'Ordenacion Funcional '!C83","v":-0.11743451776271968},{"$f":"'Ordenacion Funcional '!D91/'Ordenacion Funcional '!D83","v":-0.11670821109879409},{"$f":"'Ordenacion Funcional '!E91/'Ordenacion Funcional '!E83","v":-0.11378697538898032},{"$f":"'Ordenacion Funcional '!F91/'Ordenacion Funcional '!F83","v":-0.11439636663303807},{"$f":"('Ordenacion Funcional '!F91-'Ordenacion Funcional '!B91)/'Ordenacion Funcional '!B91","v":-9.8675207453777836E-2}]
["  Amortización del inmovilizado",{"$f":"'Ordenacion Funcional '!B92/'Ordenacion Funcional '!B83","v":-2.3637108894657741E-2},{"$f":"'Ordenacion Funcional '!C92/'Ordenacion Funcional '!C83","v":-2.7507687193551067E-2},{"$f":"'Ordenacion Funcional '!D92/'Ordenacion Funcional '!D83","v":-2.7981553047238164E-2},{"$f":"'Ordenacion Funcional '!E92/'Ordenacion Funcional '!E83","v":-2.6737130694278622E-2},{"$f":"'Ordenacion Funcional '!F92/'Ordenacion Funcional '!F83","v":-2.4981245588555929E-2},{"$f":"('Ordenacion Funcional '!F92-'Ordenacion Funcional '!B92)/'Ordenacion Funcional '!B92","v":-7.6965090346365658E-2}]
[]
["RESULTADO NETO DE EXPLOTACIÓN",{"$f":"'Ordenacion Funcional '!B94/'Ordenacion Funcional '!B83","v":1.2850815427003172E-2},{"$f":"'Ordenacion Funcional '!C94/'Ordenacion Funcional '!C83","v":1.0658500070080909E-2},{"$f":"'Ordenacion Funcional '!D94/'Ordenacion Funcional '!D83","v":4.6411357247410877E-3},{"$f":"'Ordenacion Funcional '!E94/'Ordenacion Funcional '!E83","v":5.1473637538109254E-3},{"$f":"'Ordenacion Funcional '!F94/'Ordenacion Funcional '!F83","v":2.8073105866034992E-3},{"$f":"('Ordenacion Funcional '!F94-'Ordenacion Funcional '!B94)/'Ordenacion Funcional '!B94","v":-0.80920887400586017}]
[]
["  Otros ingresos de explotación",{"$f":"'Ordenacion Funcional '!B96/'Ordenacion Funcional '!B83","v":2.001478193419565E-2},{"$f":"'Ordenacion Funcional '!C96/'Ordenacion Funcional '!C83","v":1.7774503200774984E-2},{"$f":"'Ordenacion Funcional '!D96/'Ordenacion Funcional '!D83","v":1.8243619816387901E-2},{"$f":"'Ordenacion Funcional '!E96/'Ordenacion Funcional '!E83","v":1.8990390073846206E-2},{"$f":"'Ordenacion Funcional '!F96/'Ordenacion Funcional '!F83","v":1.9625305952508533E-2},{"$f":"('Ordenacion Funcional '!F96-'Ordenacion Funcional '!B96)/'Ordenacion Funcional '!B96","v":-0.14362502687594067}]
["  Trabajos realizados por la empresa para su activo",{"$f":"'Ordenacion Funcional '!B97/'Ordenacion Funcional '!B83","v":5.9170770069918337E-4},{"$f":"'Ordenacion Funcional '!C97/'Ordenacion Funcional '!C83","v":8.2732684123635128E-4},{"$f":"'Ordenacion Funcional '!D97/'Ordenacion Funcional '!D83","v":7.6678568585059927E-4},{"$f":"'Ordenacion Funcional '!E97/'Ordenacion Funcional '!E83","v":6.4536253240257712E-4},{"$f":"'Ordenacion Funcional '!F97/'Ordenacion Funcional '!F83","v":3.0302694352982043E-4},{"$f":"('Ordenacion Funcional '!F97-'Ordenacion Funcional '!B97)/'Ordenacion Funcional '!B97","v":-0.55272727272727273}]
["  Imputación de subvenciones de inmovilizado no financiero y otras",{"$f":"'Ordenacion Funcional '!B98/'Ordenacion Funcional '!B83","v":2.5174473084292528E-4},{"$f":"'Ordenacion Funcional '!C98/'Ordenacion Funcional '!C83","v":2.3194920436461422E-4},{"$f":"'Ordenacion Funcional '!D98/'Ordenacion Funcional '!D83","v":1.6781092485867747E-4},{"$f":"'Ordenacion Funcional '!E98/'Ordenacion Funcional '!E83","v":1.6731621210437186E-4},{"$f":"'Ordenacion Funcional '!F98/'Ordenacion Funcional '!F83","v":1.2194986751809848E-4},{"$f":"('Ordenacion Funcional '!F98-'Ordenacion Funcional '!B98)/'Ordenacion Funcional '!B98","v":-0.57692307692307687}]
["  Excesos de provisiones",{"$f":"'Ordenacion Funcional '!B99/'Ordenacion Funcional '!B83","v":2.1516643661788486E-5},{"$f":"'Ordenacion Funcional '!C99/'Ordenacion Funcional '!C83","v":2.1706476344282081E-4},{"$f":"'Ordenacion Funcional '!D99/'Ordenacion Funcional '!D83","v":6.1244863087108566E-6},{"$f":"'Ordenacion Funcional '!E99/'Ordenacion Funcional '!E83","v":0},{"$f":"'Ordenacion Funcional '!F99/'Ordenacion Funcional '!F83","v":1.0347261486384113E-4},{"$f":"('Ordenacion Funcional '!F99-'Ordenacion Funcional '!B99)/'Ordenacion Funcional '!B99","v":3.2}]
["  Deterioro y resultado por enajenaciones del inmovilizado",{"$f":"'Ordenacion Funcional '!B100/'Ordenacion Funcional '!B83","v":3.0198609379320138E-3},{"$f":"'Ordenacion Funcional '!C100/'Ordenacion Funcional '!C83","v":6.9274668790180235E-3},{"$f":"'Ordenacion Funcional '!D100/'Ordenacion Funcional '!D83","v":1.5188726045602926E-3},{"$f":"'Ordenacion Funcional '!E100/'Ordenacion Funcional '!E83","v":3.3654460948993651E-3},{"$f":"'Ordenacion Funcional '!F100/'Ordenacion Funcional '!F83","v":5.1145035346984325E-3},{"$f":"('Ordenacion Funcional '!F100-'Ordenacion Funcional '!B100)/'Ordenacion Funcional '!B100","v":0.47915924474527966}]
[]
["RESULTADO ANTES DE INTERESES E IMPUESTOS",{"$f":"'Ordenacion Funcional '!B102/'Ordenacion Funcional '!B83","v":3.6750427374334732E-2},{"$f":"'Ordenacion Funcional '!C102/'Ordenacion Funcional '!C83","v":3.6636810958917701E-2},{"$f":"'Ordenacion Funcional '!D102/'Ordenacion Funcional '!D83","v":2.534434924270727E-2},{"$f":"'Ordenacion Funcional '!E102/'Ordenacion Funcional '!E83","v":2.8315878667063445E-2},{"$f":"'Ordenacion Funcional '!F102/'Ordenacion Funcional '!F83","v":2.8075569499722227E-2},{"$f":"('Ordenacion Funcional '!F102-'Ordenacion Funcional '!B102)/'Ordenacion Funcional '!B102","v":-0.33278688524590166}]
[]
["  Ingresos financieros",{"$f":"'Ordenacion Funcional '!B104/'Ordenacion Funcional '!B83","v":5.1231128558718387E-3},{"$f":"'Ordenacion Funcional '!C104/'Ordenacion Funcional '!C83","v":4.7506173942057353E-3},{"$f":"'Ordenacion Funcional '!D104/'Ordenacion Funcional '!D83","v":2.867484489738423E-3},{"$f":"'Ordenacion Funcional '!E104/'Ordenacion Funcional '!E83","v":3.0296185548898762E-3},{"$f":"'Ordenacion Funcional '!F104/'Ordenacion Funcional '!F83","v":3.3357600125152593E-3},{"$f":"('Ordenacion Funcional '!F104-'Ordenacion Funcional '!B104)/'Ordenacion Funcional '!B104","v":-0.43133137337253252}]
["  Gastos financieros",{"$f":"'Ordenacion Funcional '!B105/'Ordenacion Funcional '!B83","v":-1.6899171931968677E-2},{"$f":"'Ordenacion Funcional '!C105/'Ordenacion Funcional '!C83","v":-1.7459449201263688E-2},{"$f":"'Ordenacion Funcional '!D105/'Ordenacion Funcional '!D83","v":-1.3111300289688202E-2},{"$f":"'Ordenacion Funcional '!E105/'Ordenacion Funcional '!E83","v":-1.2209303020416163E-2},{"$f":"'Ordenacion Funcional '!F105/'Ordenacion Funcional '!F83","v":-1.2793649737807784E-2},{"$f":"('Ordenacion Funcional '!F105-'Ordenacion Funcional '!B105)/'Ordenacion Funcional '!B105","v":-0.33880825057295644}]
["  Resto de ingresos y gastos financieros",{"$f":"'Ordenacion Funcional '!B106/'Ordenacion Funcional '!B83","v":-6.5518179950145941E-4},{"$f":"'Ordenacion Funcional '!C106/'Ordenacion Funcional '!C83","v":-5.9636993293318997E-3},{"$f":"'Ordenacion Funcional '!D106/'Ordenacion Funcional '!D83","v":-3.538728189173133E-3},{"$f":"'Ordenacion Funcional '!E106/'Ordenacion Funcional '!E83","v":-2.5527673503924161E-3},{"$f":"'Ordenacion Funcional '!F106/'Ordenacion Funcional '!F83","v":8.4748998840860354E-4},{"$f":"('Ordenacion Funcional '!F106-'Ordenacion Funcional '!B106)/'Ordenacion Funcional '!B106","v":-2.1297208538587848}]
["  Variación de valor razonable en instrumentos financieros",{"$f":"'Ordenacion Funcional '!B107/'Ordenacion Funcional '!B83","v":-7.2618672358536142E-4},{"$f":"'Ordenacion Funcional '!C107/'Ordenacion Funcional '!C83","v":-7.6530833739554534E-4},{"$f":"'Ordenacion Funcional '!D107/'Ordenacion Funcional '!D83","v":-7.0431592550174854E-4},{"$f":"'Ordenacion Funcional '!E107/'Ordenacion Funcional '!E83","v":-8.9753196635988049E-4},{"$f":"'Ordenacion Funcional '!F107/'Ordenacion Funcional '!F83","v":-5.0874035641388553E-4},{"$f":"('Ordenacion Funcional '!F107-'Ordenacion Funcional '!B107)/'Ordenacion Funcional '!B107","v":-0.38814814814814813}]
["  Diferencias de cambio",{"$f":"'Ordenacion Funcional '!B108/'Ordenacion Funcional '!B83","v":1.6137482746341364E-5},{"$f":"'Ordenacion Funcional '!C108/'Ordenacion Funcional '!C83","v":-2.5750082794702626E-3},{"$f":"'Ordenacion Funcional '!D108/'Ordenacion Funcional '!D83","v":-2.5441116126384898E-3},{"$f":"'Ordenacion Funcional '!E108/'Ordenacion Funcional '!E83","v":-1.0779944522724529E-3},{"$f":"'Ordenacion Funcional '!F108/'Ordenacion Funcional '!F83","v":1.5816528272044287E-3},{"$f":"('Ordenacion Funcional '!F108-'Ordenacion Funcional '!B108)/'Ordenacion Funcional '!B108","v":84.6}]
["  Deterioro y resultado por enajenaciones de instrumentos financieros",{"$f":"'Ordenacion Funcional '!B109/'Ordenacion Funcional '!B83","v":5.4867441337560635E-5},{"$f":"'Ordenacion Funcional '!C109/'Ordenacion Funcional '!C83","v":-2.6233827124660914E-3},{"$f":"'Ordenacion Funcional '!D109/'Ordenacion Funcional '!D83","v":-2.903006510328946E-4},{"$f":"'Ordenacion Funcional '!E109/'Ordenacion Funcional '!E83","v":-5.7724093176008285E-4},{"$f":"'Ordenacion Funcional '!F109/'Ordenacion Funcional '!F83","v":-2.2542248238193959E-4},{"$f":"('Ordenacion Funcional '!F109-'Ordenacion Funcional '!B109)/'Ordenacion Funcional '!B109","v":-4.5882352941176467}]
[]
["RESULTADO ANTES DE IMPUESTOS ",{"$f":"'Ordenacion Funcional '!B111/'Ordenacion Funcional '!B83","v":2.4319186498736434E-2},{"$f":"'Ordenacion Funcional '!C111/'Ordenacion Funcional '!C83","v":1.7964279822527851E-2},{"$f":"'Ordenacion Funcional '!D111/'Ordenacion Funcional '!D83","v":1.1561805253584356E-2},{"$f":"'Ordenacion Funcional '!E111/'Ordenacion Funcional '!E83","v":1.6583426851144743E-2},{"$f":"'Ordenacion Funcional '!F111/'Ordenacion Funcional '!F83","v":1.9465169762838304E-2},{"$f":"('Ordenacion Funcional '!F111-'Ordenacion Funcional '!B111)/'Ordenacion Funcional '!B111","v":-0.30095111700951116}]
[]
["  Impuestos sobre beneficios",{"$f":"'Ordenacion Funcional '!B113/'Ordenacion Funcional '!B83","v":-3.2931223124367274E-3},{"$f":"'Ordenacion Funcional '!C113/'Ordenacion Funcional '!C83","v":-3.4916417662373745E-3},{"$f":"'Ordenacion Funcional '!D113/'Ordenacion Funcional '!D83","v":-3.0769419214963347E-3},{"$f":"'Ordenacion Funcional '!E113/'Ordenacion Funcional '!E83","v":-3.0487404077018045E-3},{"$f":"'Ordenacion Funcional '!F113/'Ordenacion Funcional '!F83","v":-3.1288147827875767E-3},{"$f":"('Ordenacion Funcional '!F113-'Ordenacion Funcional '!B113)/'Ordenacion Funcional '!B113","v":-0.17020581509310684}]
[]
["RESULTADO DEL EJERCICIO ",{"$f":"'Ordenacion Funcional '!B115/'Ordenacion Funcional '!B83","v":2.1026064186299709E-2},{"$f":"'Ordenacion Funcional '!C115/'Ordenacion Funcional '!C83","v":1.4472638056290475E-2},{"$f":"'Ordenacion Funcional '!D115/'Ordenacion Funcional '!D83","v":8.4848633320880208E-3},{"$f":"'Ordenacion Funcional '!E115/'Ordenacion Funcional '!E83","v":1.3534686443442938E-2},{"$f":"'Ordenacion Funcional '!F115/'Ordenacion Funcional '!F83","v":1.6336354980050725E-2},{"$f":"('Ordenacion Funcional '!F115-'Ordenacion Funcional '!B115)/'Ordenacion Funcional '!B115","v":-0.32142857142857145}]
[]
["R.G.O.C.",{"$f":"'Ordenacion Funcional '!B117/'Ordenacion Funcional '!B83","v":4.2025232568022181E-2},{"$f":"'Ordenacion Funcional '!C117/'Ordenacion Funcional '!C83","v":4.0567543732347985E-2},{"$f":"'Ordenacion Funcional '!D117/'Ordenacion Funcional '!D83","v":3.8312336552771636E-2},{"$f":"'Ordenacion Funcional '!E117/'Ordenacion Funcional '!E83","v":3.9291822181110242E-2},{"$f":"'Ordenacion Funcional '!F117/'Ordenacion Funcional '!F83","v":3.5130184563117679E-2},{"$f":"('Ordenacion Funcional '!F117-'Ordenacion Funcional '!B117)/'Ordenacion Funcional '!B117","v":-0.2699229449863042}]

{"sheet":"ENDEUDAMIENTO","index":4,"n_rows":25,"n_cols":6,"rows_kept":25,"cut":false,"hidden":false,"merged":[[18,0,19,0],[21,0,22,0],[24,0,25,0],[0,0,1,0],[15,0,16,0],[6,0,7,0],[9,0,10,0],[12,0,13,0]]}
["ENDEUDAMIENTO","47. COMERCIO AL POR MENOR"]
[]
["Numero de empresas incluidas que permanencen",910,910,910,910,910]
[null,2008,2009,2010,2011,2012]
[]
["ENDEUDAMIENTO TOTAL",{"$f":"'Ordenacion Funcional '!B51/'Ordenacion Funcional '!B37","v":1.0900171587968654},{"$f":"'Ordenacion Funcional '!C51/'Ordenacion Funcional '!C37","v":0.99549839228295822},{"$f":"'Ordenacion Funcional '!D51/'Ordenacion Funcional '!D37","v":0.97936157854238604},{"$f":"'Ordenacion Funcional '!E51/'Ordenacion Funcional '!E37","v":0.93840562202590416},{"$f":"'Ordenacion Funcional '!F51/'Ordenacion Funcional '!F37","v":0.85557912618005516}]
["      pasivo total / patrimonio neto"]
[]
["ENDEUDAMIENTO LARGO PLAZO",{"$f":"'Ordenacion Funcional '!B52/'Ordenacion Funcional '!B37","v":0.46977711915729203},{"$f":"'Ordenacion Funcional '!C52/'Ordenacion Funcional '!C37","v":0.46384118169946115},{"$f":"'Ordenacion Funcional '!D52/'Ordenacion Funcional '!D37","v":0.45056231071444647},{"$f":"'Ordenacion Funcional '!E52/'Ordenacion Funcional '!E37","v":0.42211414225238192},{"$f":"'Ordenacion Funcional '!F52/'Ordenacion Funcional '!F37","v":0.38194571441343689}]
["      pasivo no corriente / patrimonio neto"]
[]
["ENDEUDAMIENTO CORTO PLAZO",{"$f":"'Ordenacion Funcional '!B62/'Ordenacion Funcional '!B37","v":0.62024003963957353},{"$f":"'Ordenacion Funcional '!C62/'Ordenacion Funcional '!C37","v":0.53165721058349702},{"$f":"'Ordenacion Funcional '!D62/'Ordenacion Funcional '!D37","v":0.52879926782793951},{"$f":"'Ordenacion Funcional '!E62/'Ordenacion Funcional '!E37","v":0.5162914797735223},{"$f":"'Ordenacion Funcional '!F62/'Ordenacion Funcional '!F37","v":0.47363341176661833}]
["      pasivo corriente / patrimonio neto"]
[]
["ENDEUDAMIENTO BANCARIO",{"$f":"'Ordenacion Funcional '!B75/'Ordenacion Funcional '!B37","v":0.48555036611550534},{"$f":"'Ordenacion Funcional '!C75/'Ordenacion Funcional '!C37","v":0.48573905600122913},{"$f":"'Ordenacion Funcional '!D75/'Ordenacion Funcional '!D37","v":0.46597950518371817},{"$f":"'Ordenacion Funcional '!E75/'Ordenacion Funcional '!E37","v":0.42294400033614504},{"$f":"'Ordenacion Funcional '!F75/'Ordenacion Funcional '!F37","v":0.37887746932770888}]
["      deudas entidades de crédito  / patrimonio neto"]
[]
["ENDEUDAMIENTO BANCARIO LARGO PLAZO",{"$f":"'Ordenacion Funcional '!B54/'Ordenacion Funcional '!B37","v":0.3925510634783726},{"$f":"'Ordenacion Funcional '!C54/'Ordenacion Funcional '!C37","v":0.40400338004675002},{"$f":"'Ordenacion Funcional '!D54/'Ordenacion Funcional '!D37","v":0.39151914985735936},{"$f":"'Ordenacion Funcional '!E54/'Ordenacion Funcional '!E37","v":0.36005966574576931},{"$f":"'Ordenacion Funcional '!F54/'Ordenacion Funcional '!F37","v":0.32309839922948441}]
["      deudas entidades de crédito l.p.  / patrimonio neto"]
[]
["ENDEUDAMIENTO BANCARIO CORTO PLAZO",{"$f":"'Ordenacion Funcional '!B67/'Ordenacion Funcional '!B37","v":9.2999302637132741E-2},{"$f":"'Ordenacion Funcional '!C67/'Ordenacion Funcional '!C37","v":8.1735675954479114E-2},{"$f":"'Ordenacion Funcional '!D67/'Ordenacion Funcional '!D37","v":7.4460355326358835E-2},{"$f":"'Ordenacion Funcional '!E67/'Ordenacion Funcional '!E37","v":6.2884334590375748E-2},{"$f":"'Ordenacion Funcional '!F67/'Ordenacion Funcional '!F37","v":5.5779070098224484E-2}]
["      deudas entidades de crédito c.p.  / patrimonio neto"]
[]
["ENDEUDAMIENTO COMERCIAL CORTO PLAZO",{"$f":"'Ordenacion Funcional '!B63/'Ordenacion Funcional '!B37","v":0.40523664458350922},{"$f":"'Ordenacion Funcional '!C63/'Ordenacion Funcional '!C37","v":0.34735467445101675},{"$f":"'Ordenacion Funcional '!D63/'Ordenacion Funcional '!D37","v":0.34290772617279347},{"$f":"'Ordenacion Funcional '!E63/'Ordenacion Funcional '!E37","v":0.34080275638938201},{"$f":"'Ordenacion Funcional '!F63/'Ordenacion Funcional '!F37","v":0.30846022863505762}]
["      pasivos comerciales  / patrimonio neto"]

{"sheet":"EQUILIBRIO FINANCIERO","index":5,"n_rows":42,"n_cols":8,"rows_kept":42,"cut":false,"hidden":false,"merged":[[38,0,39,0],[41,0,43,0],[0,0,1,0],[8,0,9,0],[13,0,14,0],[16,0,17,0],[24,0,25,0]]}
["EQUILIBRIO FNANCIERO","47. COMERCIO AL POR MENOR"]
[]
["Numero de empresas incluidas que permanencen",910,910,910,910,910]
[null,2008,2009,2010,2011,2012,null,"(1) Necesidades de Financiación = Activo Comercial - Pasivo Comercial"]
["      LARGO PLAZO",null,null,null,null,null,null,"(2) Recursos Generados por Operaciones Corrientes (RGOC)"]
["     GARANTÍA ",null,null,null,null,null,null,"(3) Periodo Medio de Almacenamiento PMA"]
["          activo total / pasivo total",{"$f":"'Ordenacion Funcional '!B32/'Ordenacion Funcional '!B51","v":1.9174167506718662},{"$f":"'Ordenacion Funcional '!C32/'Ordenacion Funcional '!C51","v":2.0045219638242893},{"$f":"'Ordenacion Funcional '!D32/'Ordenacion Funcional '!D51","v":2.0210733419707263},{"$f":"'Ordenacion Funcional '!E32/'Ordenacion Funcional '!E51","v":2.0656372644498027},{"$f":"'Ordenacion Funcional '!F32/'Ordenacion Funcional '!F51","v":2.168798968325405}]
["     FINANCIACIÓN ACTIVO NO CORRIENTE"]
["          activo no corriente / pasivo no corriente",{"$f":"('Ordenacion Funcional '!B10+'Ordenacion Funcional '!B23)/('Ordenacion Funcional '!B52)","v":2.2951818701199773},{"$f":"('Ordenacion Funcional '!C10+'Ordenacion Funcional '!C23)/('Ordenacion Funcional '!C52)","v":2.270719669904842},{"$f":"('Ordenacion Funcional '!D10+'Ordenacion Funcional '!D23)/('Ordenacion Funcional '!D52)","v":2.3205843596732838},{"$f":"('Ordenacion Funcional '!E10+'Ordenacion Funcional '!E23)/('Ordenacion Funcional '!E52)","v":2.4054399761098946},{"$f":"('Ordenacion Funcional '!F10+'Ordenacion Funcional '!F23)/('Ordenacion Funcional '!F52)","v":2.5484811406075436}]
[]
[]
["      CORTO PLAZO",null,null,null,null,null,null,"(4) Periodo Medio de Cobro a Clientes PMC"]
["     RATIO CORRIENTE "]
["          activo corriente / pasivo corriente",{"$f":"('Ordenacion Funcional '!B14+'Ordenacion Funcional '!B27)/'Ordenacion Funcional '!B62","v":1.631292995044012},{"$f":"('Ordenacion Funcional '!C14+'Ordenacion Funcional '!C27)/'Ordenacion Funcional '!C62","v":1.7722793531794032},{"$f":"('Ordenacion Funcional '!D14+'Ordenacion Funcional '!D27)/'Ordenacion Funcional '!D62","v":1.7658756054556877},{"$f":"('Ordenacion Funcional '!E14+'Ordenacion Funcional '!E27)/'Ordenacion Funcional '!E62","v":1.7878183660431257},{"$f":"('Ordenacion Funcional '!F14+'Ordenacion Funcional '!F27)/'Ordenacion Funcional '!F62","v":1.8626170670075892}]
[]
["     RATIO DE COBERTUA DE LAS NECESIDADES DE FINANCIACIÓN"]
["         necesidades de financiación / fondo de maniobra (1)",{"$f":"('Ordenacion Funcional '!B15-'Ordenacion Funcional '!B63)/('Ordenacion Funcional '!B14+'Ordenacion Funcional '!B27-'Ordenacion Funcional '!B62)","v":0.81461019749368735},{"$f":"('Ordenacion Funcional '!C15-'Ordenacion Funcional '!C63)/('Ordenacion Funcional '!C14+'Ordenacion Funcional '!C27-'Ordenacion Funcional '!C62)","v":0.77197840380606186},{"$f":"('Ordenacion Funcional '!D15-'Ordenacion Funcional '!D63)/('Ordenacion Funcional '!D14+'Ordenacion Funcional '!D27-'Ordenacion Funcional '!D62)","v":0.7654178552338412},{"$f":"('Ordenacion Funcional '!E15-'Ordenacion Funcional '!E63)/('Ordenacion Funcional '!E14+'Ordenacion Funcional '!E27-'Ordenacion Funcional '!E62)","v":0.72341480547922565},{"$f":"('Ordenacion Funcional '!F15-'Ordenacion Funcional '!F63)/('Ordenacion Funcional '!F14+'Ordenacion Funcional '!F27-'Ordenacion Funcional '!F62)","v":0.69702093798179743}]
[]
["     SOLVENCIA C/P  ",null,null,null,null,null,null,"(5) Periodo Medio de Pago a Proveedores PMP"]
[null,{"$f":"'Ordenacion Funcional '!B117/'Ordenacion Funcional '!B66","v":0.41813939050106508},{"$f":"'Ordenacion Funcional '!C117/'Ordenacion Funcional '!C66","v":0.39028639618138422},{"$f":"'Ordenacion Funcional '!D117/'Ordenacion Funcional '!D66","v":0.36144077099968802},{"$f":"'Ordenacion Funcional '!E117/'Ordenacion Funcional '!E66","v":0.395469964154257},{"$f":"'Ordenacion Funcional '!F117/'Ordenacion Funcional '!F66","v":0.35142695189274448}]
["          RGOC / créditos puros c/p (2)"]
["     SOLVENCIA C/P ",{"$f":"'Ordenacion Funcional '!B117/'Ordenacion Funcional '!B67","v":0.96354307984509513},{"$f":"'Ordenacion Funcional '!C117/'Ordenacion Funcional '!C67","v":0.87824919441460791},{"$f":"'Ordenacion Funcional '!D117/'Ordenacion Funcional '!D67","v":0.90034542314335064},{"$f":"'Ordenacion Funcional '!E117/'Ordenacion Funcional '!E67","v":1.0983896832821061},{"$f":"'Ordenacion Funcional '!F117/'Ordenacion Funcional '!F67","v":1.0389056864959383}]
["          RGOC / deudas entidades de crédito c/p"]
[]
["Periodo Medio de Maduración","47. COMERCIO AL POR MENOR",null,null,null,null,null,"(6) Periodo Medio Financiero PMF = PM Económico - PM de pago a Proveedores"]
[]
["Numero de empresas incluidas que permanencen",910,910,910,910,910]
[null,2008,2009,2010,2011,2012]
["      P.M. ALMACENAMIENTO  (3)",{"$f":"'Ordenacion Funcional '!B16/(-'Ordenacion Funcional '!B84/365)","v":115.45841809822348},{"$f":"'Ordenacion Funcional '!C16/(-'Ordenacion Funcional '!C84/365)","v":132.87705438780776},{"$f":"'Ordenacion Funcional '!D16/(-'Ordenacion Funcional '!D84/365)","v":132.91401296309988},{"$f":"'Ordenacion Funcional '!E16/(-'Ordenacion Funcional '!E84/365)","v":129.8192345617513},{"$f":"'Ordenacion Funcional '!F16/(-'Ordenacion Funcional '!F84/365)","v":131.00503363358516}]
["      P.M. COBRO CLIENTES (4)",{"$f":"'Ordenacion Funcional '!B17/('Ordenacion Funcional '!B83/365)","v":34.3652805286209},{"$f":"'Ordenacion Funcional '!C17/('Ordenacion Funcional '!C83/365)","v":37.685667895873408},{"$f":"'Ordenacion Funcional '!D17/('Ordenacion Funcional '!D83/365)","v":36.698730393988207},{"$f":"'Ordenacion Funcional '!E17/('Ordenacion Funcional '!E83/365)","v":34.014041415542955},{"$f":"'Ordenacion Funcional '!F17/('Ordenacion Funcional '!F83/365)","v":31.545308071233507}]
[]
["      P.M.M. ECONÓMICO",{"$f":"SUM(B29:B30)","v":149.82369862684436},{"$f":"SUM(C29:C30)","v":170.56272228368118},{"$f":"SUM(D29:D30)","v":169.61274335708808},{"$f":"SUM(E29:E30)","v":163.83327597729425},{"$f":"SUM(F29:F30)","v":162.55034170481866}]
[]
["      P.M. PAGO PROVEEDORES (5)",{"$f":"('Ordenacion Funcional '!B64)/((-'Ordenacion Funcional '!B85)/365)","v":70.747393438873246},{"$f":"('Ordenacion Funcional '!C64)/((-'Ordenacion Funcional '!C85)/365)","v":75.435159494438167},{"$f":"('Ordenacion Funcional '!D64)/((-'Ordenacion Funcional '!D85)/365)","v":75.730722918039987},{"$f":"('Ordenacion Funcional '!E64)/((-'Ordenacion Funcional '!E85)/365)","v":72.951268855730888},{"$f":"('Ordenacion Funcional '!F64)/((-'Ordenacion Funcional '!F85)/365)","v":68.728348461173823}]
[]
["      P.M.M. FINANCIERO (6)",{"$f":"B32-B34","v":79.076305187971116},{"$f":"C32-C34","v":95.127562789243015},{"$f":"D32-D34","v":93.882020439048091},{"$f":"E32-E34","v":90.882007121563362},{"$f":"F32-F34","v":93.82199324364484}]
[]
["     NECESIDADES DE FINANCIACIÓN (periodo medio de maduración en días)"]
["           (p.m.m. financiero / p.m.m. económico) * 100",{"$f":"(B36/B32)*100","v":52.779570864100123},{"$f":"(C36/C32)*100","v":55.772774681108892},{"$f":"(D36/D32)*100","v":55.350805948228178},{"$f":"(E36/E32)*100","v":55.472251640844171},{"$f":"(F36/F32)*100","v":57.718730246670148}]
[]
["     NECESIDADES DE FINANCIACIÓN (periodo medio de maduración en euros)"]
["          (existencias + clientes por ventas y prestación de servicios) / proveedores",{"$f":"('Ordenacion Funcional '!B16+'Ordenacion Funcional '!B17)/'Ordenacion Funcional '!B64","v":2.3195579799621751},{"$f":"('Ordenacion Funcional '!C16+'Ordenacion Funcional '!C17)/'Ordenacion Funcional '!C64","v":2.4872600623248751},{"$f":"('Ordenacion Funcional '!D16+'Ordenacion Funcional '!D17)/'Ordenacion Funcional '!D64","v":2.4480602553566437},{"$f":"('Ordenacion Funcional '!E16+'Ordenacion Funcional '!E17)/'Ordenacion Funcional '!E64","v":2.4407324097268375},{"$f":"('Ordenacion Funcional '!F16+'Ordenacion Funcional '!F17)/'Ordenacion Funcional '!F64","v":2.5615559616603885}]

{"sheet":"RENTABILIDAD","index":6,"n_rows":19,"n_cols":6,"rows_kept":19,"cut":false,"hidden":false,"merged":[[0,0,1,0]]}
["Rentabilidad","47. COMERCIO AL POR MENOR"]
[]
["Numero de empresas incluidas que permanencen",910,910,910,910,910]
[null,2008,2009,2010,2011,2012]
["RENTABILIDAD ECONÓMICA",{"$f":"('BALANCE-PYG '!B99-'BALANCE-PYG '!B89)/'BALANCE-PYG '!B27","v":3.8691818763534509E-2},{"$f":"('BALANCE-PYG '!C99-'BALANCE-PYG '!C89)/'BALANCE-PYG '!C27","v":2.831565621291297E-2},{"$f":"('BALANCE-PYG '!D99-'BALANCE-PYG '!D89)/'BALANCE-PYG '!D27","v":1.90918098290714E-2},{"$f":"('BALANCE-PYG '!E99-'BALANCE-PYG '!E89)/'BALANCE-PYG '!E27","v":2.3346830657712769E-2},{"$f":"('BALANCE-PYG '!F99-'BALANCE-PYG '!F89)/'BALANCE-PYG '!F27","v":2.5895722847434462E-2}]
["     (BDI + gastos financieros) / (total activo - accionistas exigidos) (%)"]
["MARGEN ECONÓMICO",{"$f":"('BALANCE-PYG '!B99-'BALANCE-PYG '!B89)/'BALANCE-PYG '!B76","v":3.7925236118268382E-2},{"$f":"('BALANCE-PYG '!C99-'BALANCE-PYG '!C89)/'BALANCE-PYG '!C76","v":3.1932087257554163E-2},{"$f":"('BALANCE-PYG '!D99-'BALANCE-PYG '!D89)/'BALANCE-PYG '!D76","v":2.1596163621776222E-2},{"$f":"('BALANCE-PYG '!E99-'BALANCE-PYG '!E89)/'BALANCE-PYG '!E76","v":2.5743989463859102E-2},{"$f":"('BALANCE-PYG '!F99-'BALANCE-PYG '!F89)/'BALANCE-PYG '!F76","v":2.913000471785851E-2}]
["     (BDI + gastos financieros) / importe neto cifra de negocios (%)"]
["ROTACIÓN ACTIVO TOTAL ",{"$f":"'BALANCE-PYG '!B76/'BALANCE-PYG '!B27","v":1.020212995981767},{"$f":"'BALANCE-PYG '!C76/'BALANCE-PYG '!C27","v":0.88674617429571079},{"$f":"'BALANCE-PYG '!D76/'BALANCE-PYG '!D27","v":0.88403709859932755},{"$f":"'BALANCE-PYG '!E76/'BALANCE-PYG '!E27","v":0.90688471926576864},{"$f":"'BALANCE-PYG '!F76/'BALANCE-PYG '!F27","v":0.88897077423261694}]
["     importe neto cifra de negocios / (total activo - accionistas exigidos) "]
[]
["RENTABILIDAD FINANCIERA",{"$f":"'BALANCE-PYG '!B99/'BALANCE-PYG '!B31","v":4.4833091703217046E-2},{"$f":"'BALANCE-PYG '!C99/'BALANCE-PYG '!C31","v":2.5609341220109084E-2},{"$f":"'BALANCE-PYG '!D99/'BALANCE-PYG '!D31","v":1.4847060487786059E-2},{"$f":"'BALANCE-PYG '!E99/'BALANCE-PYG '!E31","v":2.3792766578778744E-2},{"$f":"'BALANCE-PYG '!F99/'BALANCE-PYG '!F31","v":2.6947726044320903E-2}]
["     BDI / (patrimonio neto - accionistas exigidos) (%)"]
["COSTE MEDIO CONTABLE DE LA DEUDA",{"$f":"ABS('BALANCE-PYG '!B89/('BALANCE-PYG '!B45+'BALANCE-PYG '!B55))","v":3.3057712098221899E-2},{"$f":"ABS('BALANCE-PYG '!C89/('BALANCE-PYG '!C45+'BALANCE-PYG '!C55))","v":3.1034209064211445E-2},{"$f":"ABS('BALANCE-PYG '!D89/('BALANCE-PYG '!D45+'BALANCE-PYG '!D55))","v":2.3426010224805657E-2},{"$f":"ABS('BALANCE-PYG '!E89/('BALANCE-PYG '!E45+'BALANCE-PYG '!E55))","v":2.2871624722668116E-2},{"$f":"ABS('BALANCE-PYG '!F89/('BALANCE-PYG '!F45+'BALANCE-PYG '!F55))","v":2.4666142596238567E-2}]
["     gastos financieros / pasivo total (%)"]
["RATIO DE ENDEUDAMIENTO",{"$f":"('BALANCE-PYG '!B45+'BALANCE-PYG '!B55)/'BALANCE-PYG '!B31","v":1.0900171587968654},{"$f":"('BALANCE-PYG '!C45+'BALANCE-PYG '!C55)/'BALANCE-PYG '!C31","v":0.99549839228295822},{"$f":"('BALANCE-PYG '!D45+'BALANCE-PYG '!D55)/'BALANCE-PYG '!D31","v":0.97936157854238604},{"$f":"('BALANCE-PYG '!E45+'BALANCE-PYG '!E55)/'BALANCE-PYG '!E31","v":0.93840562202590416},{"$f":"('BALANCE-PYG '!F45+'BALANCE-PYG '!F55)/'BALANCE-PYG '!F31","v":0.85557912618005516}]
["     pasivo total / (patrimonio neto - accionistas exigidos)"]
["APALANCAMIENTO FINANCIERO",{"$f":"(B5-B14)*B16","v":6.1412729396825337E-3},{"$f":"(C5-C14)*C16","v":-2.7063149928038843E-3},{"$f":"(D5-D14)*D16","v":-4.2447493412853367E-3},{"$f":"(E5-E14)*E16","v":4.4593592106597827E-4},{"$f":"(F5-F14)*F16","v":1.0520031968864365E-3}]
["     (RE - coste medio contable deuda) * endeudamiento (%)"]

{"sheet":"Notas","index":7,"n_rows":35,"n_cols":14,"rows_kept":35,"cut":false,"hidden":false,"merged":[[8,0,11,8],[12,0,15,8],[3,0,4,8],[5,0,7,8],[16,0,16,8],[18,13,22,18],[23,13,24,18],[27,13,28,18],[29,0,32,8],[34,0,37,8],[19,0,20,8],[21,0,22,8],[23,0,24,8],[25,0,26,8],[27,0,27,8],[12,13,14,18],[15,13,16,18],[4,13,5,18],[6,13,8,18],[9,12,11,18]]}
["Notas"]
[]
["NT1: Análisis Patrimonial y de Resultados de la Empresa.",null,null,null,null,null,null,null,null,null,null,null,"NT2: Análisis Financiero o de Solvencia"]
["El análisis patrimonial de la empresa comprende el estudio del patrimonio y de los resultados (pérdidas y ganancias). ",null,null,null,null,null,null,null,null,null,null,null,"El análisis del equilibrio financiero presenta una doble perspectiva: "]
[null,null,null,null,null,null,null,null,null,null,null,null,null,"Estático: entendido como el grado de correlación entre inversión y fuentes de financiación que demuestre la estructura patrimonial de una empresa,\n"]
["Esta primera parte del análisis tiene como objetivo el estudio estructural y coyuntural de los componentes del patrimonio (Balance: inversión y financiación) y resultados empresariales (ingresos y gastos) y de sus variaciones, tendencias y equilibrios"]
[null,null,null,null,null,null,null,null,null,null,null,null,null,"Dinámico: entendido como la capacidad que demuestre una empresa para generar recursos financieros suficientes y con puntualidad para el cumplimiento continuado de sus compromisos de pagos"]
[]
["El balance representa la fotografía del patrimonio de la empresa en un momento determinado. Dicha fotografía recoge, por un lado, las fuentes de financiación u orígenes de recursos (patrimonio neto y pasivo o estructura financiera) y, por otro, las aplicaciones de dichos fondos en bienes, derechos y otros recursos controlados económicamente por la empresa (activo o estructura económica)"]
[null,null,null,null,null,null,null,null,null,null,null,null,"El equilibrio financiero, tanto en términos de correlación inversión financiación así como de capacidad de generación de recursos suficientes en cantidad y tiempo, se han definido unos parámetros generales:"]
[]
[]
["Respecto al analisis de la cuenta de pérdidas y ganancias, señalar que interesa prestar especial atención al estudio de la composición y evolución de los resultados con una doble finalidad: Conocer si el objetivo beneficio se ha cumplido y cómo, y analizar los distintos gastos e ingresos e identificar en qué medida cada uno de ellos ha contribuido al beneficio, a disminuirlo o aumentarlo.\n",null,null,null,null,null,null,null,null,null,null,null,null,"a) El activo no corriente (inversiones a largo plazo) deberá financiarse con recursos financieros a largo plazo (capital social, obligaciones, autofinanciación y créditos a largo plazo). "]
[]
[]
[null,null,null,null,null,null,null,null,null,null,null,null,null,"b) El activo corriente (inversiones a corto plazo) deberá financiarse con créditos a corto plazo y algo de largo plazo"]
["Análisis de la inversión: aspectos a evaluar e índices de referencia"]
["· Evolución de la inversión total a lo largo del periodo de análisis (crecimiento/decrecimiento e intensidad). ",null,null,null,null,null,null,null,null,null,null,null,"NT3: Análisis Económico o de la Rentabilidad"]
["·Cómo dicha evolución ha afectado a las inversiones propias y ajenas a la explotación. ",null,null,null,null,null,null,null,null,null,null,null,null,"La rentabilidad es la medida del rendimiento que en un determinado periodo de tiempo (el ejercicio) producen los capitales utilizados en el mismo, o sea, la cczxczcomparación entre la renta generada y los capitales invertidos para obtenerla. Su análisis estará encaminado a evaluar el el grado de adecuación entre la rentabilidad alcanzada y su posición en el mercado y los medios empleados"]
["·Si existe una estructura de inversión característica (propia/ajena) y como la evolución apuntada previamente la ha moldeado. "]
[]
["·Política de renovación de los inmovilizados de explotación, tanto intangibles como materiales (tasas de variación) "]
[]
["·Análisis de la estructura y evolución de las inversiones corrientes propias del ciclo de explotación (activos comerciales) ",null,null,null,null,null,null,null,null,null,null,null,null,"Su expresión matemática responde al siguiente cociente, cuyo significado es la cantidad de renta o beneficio obtenido por cada unidad monetaria invertida:"]
[]
["Este análisis puede venir acompañado de ciertos índices de eficiencia que nos ayuden a objetivar el resultado de las comparaciones."]
[]
["Análisis de la financiación: aspectos a evaluar e índices de referencia",null,null,null,null,null,null,null,null,null,null,null,null,"Por tanto la rentabilidad es el indicador financiero frecuente,  frente a otras variables de resultados, para  de medir la gestión empresarial"]
["Evaluación del nivel de endeudamiento total. "]
["Mas allá de la premisa generalmente aceptada de que existe una relación positiva entre nivel de endeudamiento y riesgo financiero (una empresa no endeudada difícilmente entrará en quiebra), el análisis en este punto deberá ser de carácter descriptivo, ya que su correcta evaluación requeriría disponer de información que incluyera, entre otras, valoraciones sobre solvencia y rentabilidad"]
[]
[]
[]
["Análisis de la calidad del endeudamiento:"]
["El análisis de la calidad del endeudamiento es tan importante como el de su intensidad, debiéndose plantear una valoración distinta entre la participación de los créditos de provisión (permanentes y gratuitos) y los créditos puros (no permanente y con coste); y entre los créditos puros en su versión de largo y corto plazo, implicando éstos últimos el mayor riesgo financiero"]